Workbook

Sheet Salary Worksheet
A1: SALARY WORKSHEET | D1: Salary Requirement Graph
A2: DIRECTIONS: 1) Enter assumptions, 2) click 'Enter'->
A4: Assumptions
A5: Current age (# years old) | B5: 42
A6: Projected Retirement age (# years old) | B6: 70
A7: Current Savings Available ($) | B7: 500000
A8: Federal Tax rate (%) | B8: 0.25
A9: State Tax rate (%) | B9: 0.06
A10: Local Tax rate (%) | B10: 0.02
A11: Annual investment fees (%) | B11: 0.0025
A12: Annual return on investments (%) | B12: 0.05
A13: Social Security tax rate (%) | B13: 0.062
A14: Medicare tax rate (%) | B14: 0.0145
A15: Required Savings upon retirement ($) | B15: 2000000
A16: Projected Annual Salary at Current Age ($) | B16: 150000
A17: Annual Military Pension ($) | B17: 50000
A18: Military Pension Taxed by State? | B18: Yes | V18: Row Labels | W18: Sum of Savings | X18: Sum of Savings Requirement | Y18: Sum of Salary | Z18: Sum of Net Income
A19: Annual expenses ($) | B19: 100000 | V19: 42 | W19: 500000 | X19: 2000000 | Y19: 150000 | Z19: 18700
A20: Annual inflation rate and income increases (%) | B20: 0.02 | V20: 43 | W20: 542450 | X20: 2000000 | Y20: 153000 | Z20: 19074
V21: 44 | W21: 587290.375 | X21: 2000000 | Y21: 156060 | Z21: 19455.48
D22: Chart Detail | V22: 45 | W22: 634642.1478 | X22: 2000000 | Y22: 159181.2 | Z22: 19844.5896
V23: 46 | W23: 684632.2394 | X23: 2000000 | Y23: 162364.824 | Z23: 20241.48139
E24: Investments | J24: Income | M24: Deductions | V24: 47 | W24: 737393.7522 | X24: 2000000 | Y24: 165612.1205 | Z24: 20646.31102
D25: ='Salary Calculations'!A2 -> Age | E25: ='Salary Calculations'!B2 -> Savings | F25: ='Salary Calculations'!C2 -> Savings Requirement | G25: ='Salary Calculations'!D2 -> Investment Fees | H25: ='Salary Calculations'!E2 -> Return on Investments | I25: ='Salary Calculations'!F2 -> Net Investments | J25: ='Salary Calculations'!G2 -> Salary | K25: ='Salary Calculations'!H2 -> Pension | L25: ='Salary Calculations'!I2 -> Total Income | M25: ='Salary Calculations'!J2 -> Federal Taxes | N25: ='Salary Calculations'!K2 -> Social Security | O25: ='Salary Calculations'!L2 -> Medicare | P25: ='Salary Calculations'!M2 -> State Taxes | Q25: ='Salary Calculations'!N2 -> Local Taxes | R25: ='Salary Calculations'!O2 -> Total Deductions | S25: ='Salary Calculations'!P2 -> Expenses | T25: ='Salary Calculations'!Q2 -> Net Income | V25: 48 | W25: 793066.2664 | X25: 2000000 | Y25: 168924.3629 | Z25: 21059.23724
D26: =IFERROR('Salary Calculations'!A3,"") -> 42 | E26: =IFERROR('Salary Calculations'!B3,"") -> 500000 | F26: =IFERROR('Salary Calculations'!C3,"") -> 2000000 | G26: =IFERROR('Salary Calculations'!D3,"") -> 1250 | H26: =IFERROR('Salary Calculations'!E3,"") -> 25000 | I26: =IFERROR('Salary Calculations'!F3,"") -> 523750 | J26: =IFERROR('Salary Calculations'!G3,"") -> 150000 | K26: =IFERROR('Salary Calculations'!H3,"") -> 50000 | L26: =IFERROR('Salary Calculations'!I3,"") -> 200000 | M26: =IFERROR('Salary Calculations'!J3,"") -> 50000 | N26: =IFERROR('Salary Calculations'!K3,"") -> 12400 | O26: =IFERROR('Salary Calculations'!L3,"") -> 2900 | P26: =IFERROR('Salary Calculations'!M3,"") -> 12000 | Q26: =IFERROR('Salary Calculations'!N3,"") -> 4000 | R26: =IFERROR('Salary Calculations'!O3,"") -> 81300 | S26: =IFERROR('Salary Calculations'!P3,"") -> 100000 | T26: =IFERROR('Salary Calculations'!Q3,"") -> 18700 | V26: 49 | W26: 851796.1513 | X26: 2000000 | Y26: 172302.8501 | Z26: 21480.42199
D27: =IFERROR('Salary Calculations'!A4,"") -> 43 | E27: =IFERROR('Salary Calculations'!B4,"") -> 542450 | F27: =IFERROR('Salary Calculations'!C4,"") -> 2000000 | G27: =IFERROR('Salary Calculations'!D4,"") -> 1356.125 | H27: =IFERROR('Salary Calculations'!E4,"") -> 27122.5 | I27: =IFERROR('Salary Calculations'!F4,"") -> 568216.375 | J27: =IFERROR('Salary Calculations'!G4,"") -> 153000 | K27: =IFERROR('Salary Calculations'!H4,"") -> 51000 | L27: =IFERROR('Salary Calculations'!I4,"") -> 204000 | M27: =IFERROR('Salary Calculations'!J4,"") -> 51000 | N27: =IFERROR('Salary Calculations'!K4,"") -> 12648 | O27: =IFERROR('Salary Calculations'!L4,"") -> 2958 | P27: =IFERROR('Salary Calculations'!M4,"") -> 12240 | Q27: =IFERROR('Salary Calculations'!N4,"") -> 4080 | R27: =IFERROR('Salary Calculations'!O4,"") -> 82926 | S27: =IFERROR('Salary Calculations'!P4,"") -> 102000 | T27: =IFERROR('Salary Calculations'!Q4,"") -> 19074 | V27: 50 | W27: 913736.8905 | X27: 2000000 | Y27: 175748.9072 | Z27: 21910.03042
D28: =IFERROR('Salary Calculations'!A5,"") -> 44 | E28: =IFERROR('Salary Calculations'!B5,"") -> 587290.375 | F28: =IFERROR('Salary Calculations'!C5,"") -> 2000000 | G28: =IFERROR('Salary Calculations'!D5,"") -> 1468.225938 | H28: =IFERROR('Salary Calculations'!E5,"") -> 29364.51875 | I28: =IFERROR('Salary Calculations'!F5,"") -> 615186.6678 | J28: =IFERROR('Salary Calculations'!G5,"") -> 156060 | K28: =IFERROR('Salary Calculations'!H5,"") -> 52020 | L28: =IFERROR('Salary Calculations'!I5,"") -> 208080 | M28: =IFERROR('Salary Calculations'!J5,"") -> 52020 | N28: =IFERROR('Salary Calculations'!K5,"") -> 12900.96 | O28: =IFERROR('Salary Calculations'!L5,"") -> 3017.16 | P28: =IFERROR('Salary Calculations'!M5,"") -> 12484.8 | Q28: =IFERROR('Salary Calculations'!N5,"") -> 4161.6 | R28: =IFERROR('Salary Calculations'!O5,"") -> 84584.52 | S28: =IFERROR('Salary Calculations'!P5,"") -> 104040 | T28: =IFERROR('Salary Calculations'!Q5,"") -> 19455.48 | V28: 51 | W28: 979049.4232 | X28: 2000000 | Y28: 179263.8853 | Z28: 22348.23103
D29: =IFERROR('Salary Calculations'!A6,"") -> 45 | E29: =IFERROR('Salary Calculations'!B6,"") -> 634642.1478 | F29: =IFERROR('Salary Calculations'!C6,"") -> 2000000 | G29: =IFERROR('Salary Calculations'!D6,"") -> 1586.60537 | H29: =IFERROR('Salary Calculations'!E6,"") -> 31732.10739 | I29: =IFERROR('Salary Calculations'!F6,"") -> 664787.6498 | J29: =IFERROR('Salary Calculations'!G6,"") -> 159181.2 | K29: =IFERROR('Salary Calculations'!H6,"") -> 53060.4 | L29: =IFERROR('Salary Calculations'!I6,"") -> 212241.6 | M29: =IFERROR('Salary Calculations'!J6,"") -> 53060.4 | N29: =IFERROR('Salary Calculations'!K6,"") -> 13158.9792 | O29: =IFERROR('Salary Calculations'!L6,"") -> 3077.5032 | P29: =IFERROR('Salary Calculations'!M6,"") -> 12734.496 | Q29: =IFERROR('Salary Calculations'!N6,"") -> 4244.832 | R29: =IFERROR('Salary Calculations'!O6,"") -> 86276.2104 | S29: =IFERROR('Salary Calculations'!P6,"") -> 106120.8 | T29: =IFERROR('Salary Calculations'!Q6,"") -> 19844.5896 | V29: 52 | W29: 1047902.502 | X29: 2000000 | Y29: 182849.163 | Z29: 22795.19565
D30: =IFERROR('Salary Calculations'!A7,"") -> 46 | E30: =IFERROR('Salary Calculations'!B7,"") -> 684632.2394 | F30: =IFERROR('Salary Calculations'!C7,"") -> 2000000 | G30: =IFERROR('Salary Calculations'!D7,"") -> 1711.580599 | H30: =IFERROR('Salary Calculations'!E7,"") -> 34231.61197 | I30: =IFERROR('Salary Calculations'!F7,"") -> 717152.2708 | J30: =IFERROR('Salary Calculations'!G7,"") -> 162364.824 | K30: =IFERROR('Salary Calculations'!H7,"") -> 54121.608 | L30: =IFERROR('Salary Calculations'!I7,"") -> 216486.432 | M30: =IFERROR('Salary Calculations'!J7,"") -> 54121.608 | N30: =IFERROR('Salary Calculations'!K7,"") -> 13422.15878 | O30: =IFERROR('Salary Calculations'!L7,"") -> 3139.053264 | P30: =IFERROR('Salary Calculations'!M7,"") -> 12989.18592 | Q30: =IFERROR('Salary Calculations'!N7,"") -> 4329.72864 | R30: =IFERROR('Salary Calculations'!O7,"") -> 88001.73461 | S30: =IFERROR('Salary Calculations'!P7,"") -> 108243.216 | T30: =IFERROR('Salary Calculations'!Q7,"") -> 20241.48139 | V30: 53 | W30: 1120473.066 | X30: 2000000 | Y30: 186506.1463 | Z30: 23251.09957
D31: =IFERROR('Salary Calculations'!A8,"") -> 47 | E31: =IFERROR('Salary Calculations'!B8,"") -> 737393.7522 | F31: =IFERROR('Salary Calculations'!C8,"") -> 2000000 | G31: =IFERROR('Salary Calculations'!D8,"") -> 1843.48438 | H31: =IFERROR('Salary Calculations'!E8,"") -> 36869.68761 | I31: =IFERROR('Salary Calculations'!F8,"") -> 772419.9554 | J31: =IFERROR('Salary Calculations'!G8,"") -> 165612.1205 | K31: =IFERROR('Salary Calculations'!H8,"") -> 55204.04016 | L31: =IFERROR('Salary Calculations'!I8,"") -> 220816.1606 | M31: =IFERROR('Salary Calculations'!J8,"") -> 55204.04016 | N31: =IFERROR('Salary Calculations'!K8,"") -> 13690.60196 | O31: =IFERROR('Salary Calculations'!L8,"") -> 3201.834329 | P31: =IFERROR('Salary Calculations'!M8,"") -> 13248.96964 | Q31: =IFERROR('Salary Calculations'!N8,"") -> 4416.323213 | R31: =IFERROR('Salary Calculations'!O8,"") -> 89761.7693 | S31: =IFERROR('Salary Calculations'!P8,"") -> 110408.0803 | T31: =IFERROR('Salary Calculations'!Q8,"") -> 20646.31102 | V31: 54 | W31: 1196946.637 | X31: 2000000 | Y31: 190236.2692 | Z31: 23716.12156
D32: =IFERROR('Salary Calculations'!A9,"") -> 48 | E32: =IFERROR('Salary Calculations'!B9,"") -> 793066.2664 | F32: =IFERROR('Salary Calculations'!C9,"") -> 2000000 | G32: =IFERROR('Salary Calculations'!D9,"") -> 1982.665666 | H32: =IFERROR('Salary Calculations'!E9,"") -> 39653.31332 | I32: =IFERROR('Salary Calculations'!F9,"") -> 830736.9141 | J32: =IFERROR('Salary Calculations'!G9,"") -> 168924.3629 | K32: =IFERROR('Salary Calculations'!H9,"") -> 56308.12096 | L32: =IFERROR('Salary Calculations'!I9,"") -> 225232.4839 | M32: =IFERROR('Salary Calculations'!J9,"") -> 56308.12096 | N32: =IFERROR('Salary Calculations'!K9,"") -> 13964.414 | O32: =IFERROR('Salary Calculations'!L9,"") -> 3265.871016 | P32: =IFERROR('Salary Calculations'!M9,"") -> 13513.94903 | Q32: =IFERROR('Salary Calculations'!N9,"") -> 4504.649677 | R32: =IFERROR('Salary Calculations'!O9,"") -> 91557.00469 | S32: =IFERROR('Salary Calculations'!P9,"") -> 112616.2419 | T32: =IFERROR('Salary Calculations'!Q9,"") -> 21059.23724 | V32: 55 | W32: 1277517.723 | X32: 2000000 | Y32: 194040.9946 | Z32: 24190.44399
D33: =IFERROR('Salary Calculations'!A10,"") -> 49 | E33: =IFERROR('Salary Calculations'!B10,"") -> 851796.1513 | F33: =IFERROR('Salary Calculations'!C10,"") -> 2000000 | G33: =IFERROR('Salary Calculations'!D10,"") -> 2129.490378 | H33: =IFERROR('Salary Calculations'!E10,"") -> 42589.80757 | I33: =IFERROR('Salary Calculations'!F10,"") -> 892256.4685 | J33: =IFERROR('Salary Calculations'!G10,"") -> 172302.8501 | K33: =IFERROR('Salary Calculations'!H10,"") -> 57434.28338 | L33: =IFERROR('Salary Calculations'!I10,"") -> 229737.1335 | M33: =IFERROR('Salary Calculations'!J10,"") -> 57434.28338 | N33: =IFERROR('Salary Calculations'!K10,"") -> 14243.70228 | O33: =IFERROR('Salary Calculations'!L10,"") -> 3331.188436 | P33: =IFERROR('Salary Calculations'!M10,"") -> 13784.22801 | Q33: =IFERROR('Salary Calculations'!N10,"") -> 4594.742671 | R33: =IFERROR('Salary Calculations'!O10,"") -> 93388.14478 | S33: =IFERROR('Salary Calculations'!P10,"") -> 114868.5668 | T33: =IFERROR('Salary Calculations'!Q10,"") -> 21480.42199 | V33: 56 | W33: 1362390.259 | X33: 2000000 | Y33: 197921.8145 | Z33: 24674.25287
D34: =IFERROR('Salary Calculations'!A11,"") -> 50 | E34: =IFERROR('Salary Calculations'!B11,"") -> 913736.8905 | F34: =IFERROR('Salary Calculations'!C11,"") -> 2000000 | G34: =IFERROR('Salary Calculations'!D11,"") -> 2284.342226 | H34: =IFERROR('Salary Calculations'!E11,"") -> 45686.84453 | I34: =IFERROR('Salary Calculations'!F11,"") -> 957139.3928 | J34: =IFERROR('Salary Calculations'!G11,"") -> 175748.9072 | K34: =IFERROR('Salary Calculations'!H11,"") -> 58582.96905 | L34: =IFERROR('Salary Calculations'!I11,"") -> 234331.8762 | M34: =IFERROR('Salary Calculations'!J11,"") -> 58582.96905 | N34: =IFERROR('Salary Calculations'!K11,"") -> 14528.57632 | O34: =IFERROR('Salary Calculations'!L11,"") -> 3397.812205 | P34: =IFERROR('Salary Calculations'!M11,"") -> 14059.91257 | Q34: =IFERROR('Salary Calculations'!N11,"") -> 4686.637524 | R34: =IFERROR('Salary Calculations'!O11,"") -> 95255.90768 | S34: =IFERROR('Salary Calculations'!P11,"") -> 117165.9381 | T34: =IFERROR('Salary Calculations'!Q11,"") -> 21910.03042 | V34: 57 | W34: 1451778.049 | X34: 2000000 | Y34: 201880.2507 | Z34: 25167.73793
D35: =IFERROR('Salary Calculations'!A12,"") -> 51 | E35: =IFERROR('Salary Calculations'!B12,"") -> 979049.4232 | F35: =IFERROR('Salary Calculations'!C12,"") -> 2000000 | G35: =IFERROR('Salary Calculations'!D12,"") -> 2447.623558 | H35: =IFERROR('Salary Calculations'!E12,"") -> 48952.47116 | I35: =IFERROR('Salary Calculations'!F12,"") -> 1025554.271 | J35: =IFERROR('Salary Calculations'!G12,"") -> 179263.8853 | K35: =IFERROR('Salary Calculations'!H12,"") -> 59754.62843 | L35: =IFERROR('Salary Calculations'!I12,"") -> 239018.5137 | M35: =IFERROR('Salary Calculations'!J12,"") -> 59754.62843 | N35: =IFERROR('Salary Calculations'!K12,"") -> 14819.14785 | O35: =IFERROR('Salary Calculations'!L12,"") -> 3465.768449 | P35: =IFERROR('Salary Calculations'!M12,"") -> 14341.11082 | Q35: =IFERROR('Salary Calculations'!N12,"") -> 4780.370274 | R35: =IFERROR('Salary Calculations'!O12,"") -> 97161.02583 | S35: =IFERROR('Salary Calculations'!P12,"") -> 119509.2569 | T35: =IFERROR('Salary Calculations'!Q12,"") -> 22348.23103 | V35: 58 | W35: 1545905.245 | X35: 2000000 | Y35: 205917.8558 | Z35: 25671.09269
D36: =IFERROR('Salary Calculations'!A13,"") -> 52 | E36: =IFERROR('Salary Calculations'!B13,"") -> 1047902.502 | F36: =IFERROR('Salary Calculations'!C13,"") -> 2000000 | G36: =IFERROR('Salary Calculations'!D13,"") -> 2619.756255 | H36: =IFERROR('Salary Calculations'!E13,"") -> 52395.12509 | I36: =IFERROR('Salary Calculations'!F13,"") -> 1097677.871 | J36: =IFERROR('Salary Calculations'!G13,"") -> 182849.163 | K36: =IFERROR('Salary Calculations'!H13,"") -> 60949.721 | L36: =IFERROR('Salary Calculations'!I13,"") -> 243798.884 | M36: =IFERROR('Salary Calculations'!J13,"") -> 60949.721 | N36: =IFERROR('Salary Calculations'!K13,"") -> 15115.53081 | O36: =IFERROR('Salary Calculations'!L13,"") -> 3535.083818 | P36: =IFERROR('Salary Calculations'!M13,"") -> 14627.93304 | Q36: =IFERROR('Salary Calculations'!N13,"") -> 4875.97768 | R36: =IFERROR('Salary Calculations'!O13,"") -> 99104.24635 | S36: =IFERROR('Salary Calculations'!P13,"") -> 121899.442 | T36: =IFERROR('Salary Calculations'!Q13,"") -> 22795.19565 | V36: 59 | W36: 1645006.837 | X36: 2000000 | Y36: 210036.2129 | Z36: 26184.51454
D37: =IFERROR('Salary Calculations'!A14,"") -> 53 | E37: =IFERROR('Salary Calculations'!B14,"") -> 1120473.066 | F37: =IFERROR('Salary Calculations'!C14,"") -> 2000000 | G37: =IFERROR('Salary Calculations'!D14,"") -> 2801.182666 | H37: =IFERROR('Salary Calculations'!E14,"") -> 56023.65332 | I37: =IFERROR('Salary Calculations'!F14,"") -> 1173695.537 | J37: =IFERROR('Salary Calculations'!G14,"") -> 186506.1463 | K37: =IFERROR('Salary Calculations'!H14,"") -> 62168.71542 | L37: =IFERROR('Salary Calculations'!I14,"") -> 248674.8617 | M37: =IFERROR('Salary Calculations'!J14,"") -> 62168.71542 | N37: =IFERROR('Salary Calculations'!K14,"") -> 15417.84142 | O37: =IFERROR('Salary Calculations'!L14,"") -> 3605.785494 | P37: =IFERROR('Salary Calculations'!M14,"") -> 14920.4917 | Q37: =IFERROR('Salary Calculations'!N14,"") -> 4973.497234 | R37: =IFERROR('Salary Calculations'!O14,"") -> 101086.3313 | S37: =IFERROR('Salary Calculations'!P14,"") -> 124337.4308 | T37: =IFERROR('Salary Calculations'!Q14,"") -> 23251.09957 | V37: 60 | W37: 1749329.176 | X37: 2000000 | Y37: 214236.9371 | Z37: 26708.20483
D38: =IFERROR('Salary Calculations'!A15,"") -> 54 | E38: =IFERROR('Salary Calculations'!B15,"") -> 1196946.637 | F38: =IFERROR('Salary Calculations'!C15,"") -> 2000000 | G38: =IFERROR('Salary Calculations'!D15,"") -> 2992.366591 | H38: =IFERROR('Salary Calculations'!E15,"") -> 59847.33183 | I38: =IFERROR('Salary Calculations'!F15,"") -> 1253801.602 | J38: =IFERROR('Salary Calculations'!G15,"") -> 190236.2692 | K38: =IFERROR('Salary Calculations'!H15,"") -> 63412.08973 | L38: =IFERROR('Salary Calculations'!I15,"") -> 253648.3589 | M38: =IFERROR('Salary Calculations'!J15,"") -> 63412.08973 | N38: =IFERROR('Salary Calculations'!K15,"") -> 15726.19825 | O38: =IFERROR('Salary Calculations'!L15,"") -> 3677.901204 | P38: =IFERROR('Salary Calculations'!M15,"") -> 15218.90153 | Q38: =IFERROR('Salary Calculations'!N15,"") -> 5072.967178 | R38: =IFERROR('Salary Calculations'!O15,"") -> 103108.0579 | S38: =IFERROR('Salary Calculations'!P15,"") -> 126824.1795 | T38: =IFERROR('Salary Calculations'!Q15,"") -> 23716.12156 | V38: 61 | W38: 1859130.516 | X38: 2000000 | Y38: 218521.6759 | Z38: 27242.36893
D39: =IFERROR('Salary Calculations'!A16,"") -> 55 | E39: =IFERROR('Salary Calculations'!B16,"") -> 1277517.723 | F39: =IFERROR('Salary Calculations'!C16,"") -> 2000000 | G39: =IFERROR('Salary Calculations'!D16,"") -> 3193.794308 | H39: =IFERROR('Salary Calculations'!E16,"") -> 63875.88617 | I39: =IFERROR('Salary Calculations'!F16,"") -> 1338199.815 | J39: =IFERROR('Salary Calculations'!G16,"") -> 194040.9946 | K39: =IFERROR('Salary Calculations'!H16,"") -> 64680.33152 | L39: =IFERROR('Salary Calculations'!I16,"") -> 258721.3261 | M39: =IFERROR('Salary Calculations'!J16,"") -> 64680.33152 | N39: =IFERROR('Salary Calculations'!K16,"") -> 16040.72222 | O39: =IFERROR('Salary Calculations'!L16,"") -> 3751.459228 | P39: =IFERROR('Salary Calculations'!M16,"") -> 15523.27957 | Q39: =IFERROR('Salary Calculations'!N16,"") -> 5174.426522 | R39: =IFERROR('Salary Calculations'!O16,"") -> 105170.2191 | S39: =IFERROR('Salary Calculations'!P16,"") -> 129360.663 | T39: =IFERROR('Salary Calculations'!Q16,"") -> 24190.44399 | V39: 62 | W39: 1974681.585 | X39: 2000000 | Y39: 222892.1094 | Z39: 27787.2163
D40: =IFERROR('Salary Calculations'!A17,"") -> 56 | E40: =IFERROR('Salary Calculations'!B17,"") -> 1362390.259 | F40: =IFERROR('Salary Calculations'!C17,"") -> 2000000 | G40: =IFERROR('Salary Calculations'!D17,"") -> 3405.975648 | H40: =IFERROR('Salary Calculations'!E17,"") -> 68119.51296 | I40: =IFERROR('Salary Calculations'!F17,"") -> 1427103.797 | J40: =IFERROR('Salary Calculations'!G17,"") -> 197921.8145 | K40: =IFERROR('Salary Calculations'!H17,"") -> 65973.93815 | L40: =IFERROR('Salary Calculations'!I17,"") -> 263895.7526 | M40: =IFERROR('Salary Calculations'!J17,"") -> 65973.93815 | N40: =IFERROR('Salary Calculations'!K17,"") -> 16361.53666 | O40: =IFERROR('Salary Calculations'!L17,"") -> 3826.488413 | P40: =IFERROR('Salary Calculations'!M17,"") -> 15833.74516 | Q40: =IFERROR('Salary Calculations'!N17,"") -> 5277.915052 | R40: =IFERROR('Salary Calculations'!O17,"") -> 107273.6234 | S40: =IFERROR('Salary Calculations'!P17,"") -> 131947.8763 | T40: =IFERROR('Salary Calculations'!Q17,"") -> 24674.25287 | V40: 63 | W40: 2096266.177 | X40: 2000000 | Y40: 227349.9516 | Z40: 28342.96063
D41: =IFERROR('Salary Calculations'!A18,"") -> 57 | E41: =IFERROR('Salary Calculations'!B18,"") -> 1451778.049 | F41: =IFERROR('Salary Calculations'!C18,"") -> 2000000 | G41: =IFERROR('Salary Calculations'!D18,"") -> 3629.445124 | H41: =IFERROR('Salary Calculations'!E18,"") -> 72588.90247 | I41: =IFERROR('Salary Calculations'!F18,"") -> 1520737.507 | J41: =IFERROR('Salary Calculations'!G18,"") -> 201880.2507 | K41: =IFERROR('Salary Calculations'!H18,"") -> 67293.41692 | L41: =IFERROR('Salary Calculations'!I18,"") -> 269173.6677 | M41: =IFERROR('Salary Calculations'!J18,"") -> 67293.41692 | N41: =IFERROR('Salary Calculations'!K18,"") -> 16688.7674 | O41: =IFERROR('Salary Calculations'!L18,"") -> 3903.018181 | P41: =IFERROR('Salary Calculations'!M18,"") -> 16150.42006 | Q41: =IFERROR('Salary Calculations'!N18,"") -> 5383.473353 | R41: =IFERROR('Salary Calculations'!O18,"") -> 109419.0959 | S41: =IFERROR('Salary Calculations'!P18,"") -> 134586.8338 | T41: =IFERROR('Salary Calculations'!Q18,"") -> 25167.73793 | V41: 64 | W41: 2224181.781 | X41: 2000000 | Y41: 231896.9506 | Z41: 28909.81984
D42: =IFERROR('Salary Calculations'!A19,"") -> 58 | E42: =IFERROR('Salary Calculations'!B19,"") -> 1545905.245 | F42: =IFERROR('Salary Calculations'!C19,"") -> 2000000 | G42: =IFERROR('Salary Calculations'!D19,"") -> 3864.763112 | H42: =IFERROR('Salary Calculations'!E19,"") -> 77295.26223 | I42: =IFERROR('Salary Calculations'!F19,"") -> 1619335.744 | J42: =IFERROR('Salary Calculations'!G19,"") -> 205917.8558 | K42: =IFERROR('Salary Calculations'!H19,"") -> 68639.28525 | L42: =IFERROR('Salary Calculations'!I19,"") -> 274557.141 | M42: =IFERROR('Salary Calculations'!J19,"") -> 68639.28525 | N42: =IFERROR('Salary Calculations'!K19,"") -> 17022.54274 | O42: =IFERROR('Salary Calculations'!L19,"") -> 3981.078545 | P42: =IFERROR('Salary Calculations'!M19,"") -> 16473.42846 | Q42: =IFERROR('Salary Calculations'!N19,"") -> 5491.14282 | R42: =IFERROR('Salary Calculations'!O19,"") -> 111607.4778 | S42: =IFERROR('Salary Calculations'!P19,"") -> 137278.5705 | T42: =IFERROR('Salary Calculations'!Q19,"") -> 25671.09269 | V42: 65 | W42: 2358740.235 | X42: 2000000 | Y42: 236534.8896 | Z42: 29488.01624
D43: =IFERROR('Salary Calculations'!A20,"") -> 59 | E43: =IFERROR('Salary Calculations'!B20,"") -> 1645006.837 | F43: =IFERROR('Salary Calculations'!C20,"") -> 2000000 | G43: =IFERROR('Salary Calculations'!D20,"") -> 4112.517091 | H43: =IFERROR('Salary Calculations'!E20,"") -> 82250.34183 | I43: =IFERROR('Salary Calculations'!F20,"") -> 1723144.661 | J43: =IFERROR('Salary Calculations'!G20,"") -> 210036.2129 | K43: =IFERROR('Salary Calculations'!H20,"") -> 70012.07096 | L43: =IFERROR('Salary Calculations'!I20,"") -> 280048.2838 | M43: =IFERROR('Salary Calculations'!J20,"") -> 70012.07096 | N43: =IFERROR('Salary Calculations'!K20,"") -> 17362.9936 | O43: =IFERROR('Salary Calculations'!L20,"") -> 4060.700116 | P43: =IFERROR('Salary Calculations'!M20,"") -> 16802.89703 | Q43: =IFERROR('Salary Calculations'!N20,"") -> 5600.965677 | R43: =IFERROR('Salary Calculations'!O20,"") -> 113839.6274 | S43: =IFERROR('Salary Calculations'!P20,"") -> 140024.1419 | T43: =IFERROR('Salary Calculations'!Q20,"") -> 26184.51454 | V43: 66 | W43: 2500268.412 | X43: 2000000 | Y43: 241265.5874 | Z43: 30077.77657
D44: =IFERROR('Salary Calculations'!A21,"") -> 60 | E44: =IFERROR('Salary Calculations'!B21,"") -> 1749329.176 | F44: =IFERROR('Salary Calculations'!C21,"") -> 2000000 | G44: =IFERROR('Salary Calculations'!D21,"") -> 4373.322939 | H44: =IFERROR('Salary Calculations'!E21,"") -> 87466.45879 | I44: =IFERROR('Salary Calculations'!F21,"") -> 1832422.312 | J44: =IFERROR('Salary Calculations'!G21,"") -> 214236.9371 | K44: =IFERROR('Salary Calculations'!H21,"") -> 71412.31238 | L44: =IFERROR('Salary Calculations'!I21,"") -> 285649.2495 | M44: =IFERROR('Salary Calculations'!J21,"") -> 71412.31238 | N44: =IFERROR('Salary Calculations'!K21,"") -> 17710.25347 | O44: =IFERROR('Salary Calculations'!L21,"") -> 4141.914118 | P44: =IFERROR('Salary Calculations'!M21,"") -> 17138.95497 | Q44: =IFERROR('Salary Calculations'!N21,"") -> 5712.98499 | R44: =IFERROR('Salary Calculations'!O21,"") -> 116116.4199 | S44: =IFERROR('Salary Calculations'!P21,"") -> 142824.6248 | T44: =IFERROR('Salary Calculations'!Q21,"") -> 26708.20483 | V44: 67 | W44: 2649108.938 | X44: 2000000 | Y44: 246090.8992 | Z44: 30679.3321
D45: =IFERROR('Salary Calculations'!A22,"") -> 61 | E45: =IFERROR('Salary Calculations'!B22,"") -> 1859130.516 | F45: =IFERROR('Salary Calculations'!C22,"") -> 2000000 | G45: =IFERROR('Salary Calculations'!D22,"") -> 4647.826291 | H45: =IFERROR('Salary Calculations'!E22,"") -> 92956.52582 | I45: =IFERROR('Salary Calculations'!F22,"") -> 1947439.216 | J45: =IFERROR('Salary Calculations'!G22,"") -> 218521.6759 | K45: =IFERROR('Salary Calculations'!H22,"") -> 72840.55863 | L45: =IFERROR('Salary Calculations'!I22,"") -> 291362.2345 | M45: =IFERROR('Salary Calculations'!J22,"") -> 72840.55863 | N45: =IFERROR('Salary Calculations'!K22,"") -> 18064.45854 | O45: =IFERROR('Salary Calculations'!L22,"") -> 4224.7524 | P45: =IFERROR('Salary Calculations'!M22,"") -> 17481.73407 | Q45: =IFERROR('Salary Calculations'!N22,"") -> 5827.24469 | R45: =IFERROR('Salary Calculations'!O22,"") -> 118438.7483 | S45: =IFERROR('Salary Calculations'!P22,"") -> 145681.1173 | T45: =IFERROR('Salary Calculations'!Q22,"") -> 27242.36893 | V45: 68 | W45: 2805620.945 | X45: 2000000 | Y45: 251012.7172 | Z45: 31292.91874
D46: =IFERROR('Salary Calculations'!A23,"") -> 62 | E46: =IFERROR('Salary Calculations'!B23,"") -> 1974681.585 | F46: =IFERROR('Salary Calculations'!C23,"") -> 2000000 | G46: =IFERROR('Salary Calculations'!D23,"") -> 4936.703962 | H46: =IFERROR('Salary Calculations'!E23,"") -> 98734.07925 | I46: =IFERROR('Salary Calculations'!F23,"") -> 2068478.96 | J46: =IFERROR('Salary Calculations'!G23,"") -> 222892.1094 | K46: =IFERROR('Salary Calculations'!H23,"") -> 74297.3698 | L46: =IFERROR('Salary Calculations'!I23,"") -> 297189.4792 | M46: =IFERROR('Salary Calculations'!J23,"") -> 74297.3698 | N46: =IFERROR('Salary Calculations'!K23,"") -> 18425.74771 | O46: =IFERROR('Salary Calculations'!L23,"") -> 4309.247448 | P46: =IFERROR('Salary Calculations'!M23,"") -> 17831.36875 | Q46: =IFERROR('Salary Calculations'!N23,"") -> 5943.789584 | R46: =IFERROR('Salary Calculations'!O23,"") -> 120807.5233 | S46: =IFERROR('Salary Calculations'!P23,"") -> 148594.7396 | T46: =IFERROR('Salary Calculations'!Q23,"") -> 27787.2163 | V46: 69 | W46: 2970180.859 | X46: 2000000 | Y46: 256032.9715 | Z46: 31918.77711
D47: =IFERROR('Salary Calculations'!A24,"") -> 63 | E47: =IFERROR('Salary Calculations'!B24,"") -> 2096266.177 | F47: =IFERROR('Salary Calculations'!C24,"") -> 2000000 | G47: =IFERROR('Salary Calculations'!D24,"") -> 5240.665441 | H47: =IFERROR('Salary Calculations'!E24,"") -> 104813.3088 | I47: =IFERROR('Salary Calculations'!F24,"") -> 2195838.82 | J47: =IFERROR('Salary Calculations'!G24,"") -> 227349.9516 | K47: =IFERROR('Salary Calculations'!H24,"") -> 75783.31719 | L47: =IFERROR('Salary Calculations'!I24,"") -> 303133.2688 | M47: =IFERROR('Salary Calculations'!J24,"") -> 75783.31719 | N47: =IFERROR('Salary Calculations'!K24,"") -> 18794.26266 | O47: =IFERROR('Salary Calculations'!L24,"") -> 4395.432397 | P47: =IFERROR('Salary Calculations'!M24,"") -> 18187.99613 | Q47: =IFERROR('Salary Calculations'!N24,"") -> 6062.665376 | R47: =IFERROR('Salary Calculations'!O24,"") -> 123223.6738 | S47: =IFERROR('Salary Calculations'!P24,"") -> 151566.6344 | T47: =IFERROR('Salary Calculations'!Q24,"") -> 28342.96063 | V47: 70 | W47: 3143183.227 | X47: 2000000 | Y47: 261153.6309 | Z47: 32557.15266
D48: =IFERROR('Salary Calculations'!A25,"") -> 64 | E48: =IFERROR('Salary Calculations'!B25,"") -> 2224181.781 | F48: =IFERROR('Salary Calculations'!C25,"") -> 2000000 | G48: =IFERROR('Salary Calculations'!D25,"") -> 5560.454451 | H48: =IFERROR('Salary Calculations'!E25,"") -> 111209.089 | I48: =IFERROR('Salary Calculations'!F25,"") -> 2329830.415 | J48: =IFERROR('Salary Calculations'!G25,"") -> 231896.9506 | K48: =IFERROR('Salary Calculations'!H25,"") -> 77298.98354 | L48: =IFERROR('Salary Calculations'!I25,"") -> 309195.9342 | M48: =IFERROR('Salary Calculations'!J25,"") -> 77298.98354 | N48: =IFERROR('Salary Calculations'!K25,"") -> 19170.14792 | O48: =IFERROR('Salary Calculations'!L25,"") -> 4483.341045 | P48: =IFERROR('Salary Calculations'!M25,"") -> 18551.75605 | Q48: =IFERROR('Salary Calculations'!N25,"") -> 6183.918683 | R48: =IFERROR('Salary Calculations'!O25,"") -> 125688.1472 | S48: =IFERROR('Salary Calculations'!P25,"") -> 154597.9671 | T48: =IFERROR('Salary Calculations'!Q25,"") -> 28909.81984 | V48: Grand Total | W48: 44202669.41 | X48: 58000000 | Y48: 5818835.177 | Z48: 725414.7854
D49: =IFERROR('Salary Calculations'!A26,"") -> 65 | E49: =IFERROR('Salary Calculations'!B26,"") -> 2358740.235 | F49: =IFERROR('Salary Calculations'!C26,"") -> 2000000 | G49: =IFERROR('Salary Calculations'!D26,"") -> 5896.850587 | H49: =IFERROR('Salary Calculations'!E26,"") -> 117937.0117 | I49: =IFERROR('Salary Calculations'!F26,"") -> 2470780.396 | J49: =IFERROR('Salary Calculations'!G26,"") -> 236534.8896 | K49: =IFERROR('Salary Calculations'!H26,"") -> 78844.96321 | L49: =IFERROR('Salary Calculations'!I26,"") -> 315379.8528 | M49: =IFERROR('Salary Calculations'!J26,"") -> 78844.96321 | N49: =IFERROR('Salary Calculations'!K26,"") -> 19553.55088 | O49: =IFERROR('Salary Calculations'!L26,"") -> 4573.007866 | P49: =IFERROR('Salary Calculations'!M26,"") -> 18922.79117 | Q49: =IFERROR('Salary Calculations'!N26,"") -> 6307.597057 | R49: =IFERROR('Salary Calculations'!O26,"") -> 128201.9102 | S49: =IFERROR('Salary Calculations'!P26,"") -> 157689.9264 | T49: =IFERROR('Salary Calculations'!Q26,"") -> 29488.01624
D50: =IFERROR('Salary Calculations'!A27,"") -> 66 | E50: =IFERROR('Salary Calculations'!B27,"") -> 2500268.412 | F50: =IFERROR('Salary Calculations'!C27,"") -> 2000000 | G50: =IFERROR('Salary Calculations'!D27,"") -> 6250.671031 | H50: =IFERROR('Salary Calculations'!E27,"") -> 125013.4206 | I50: =IFERROR('Salary Calculations'!F27,"") -> 2619031.162 | J50: =IFERROR('Salary Calculations'!G27,"") -> 241265.5874 | K50: =IFERROR('Salary Calculations'!H27,"") -> 80421.86247 | L50: =IFERROR('Salary Calculations'!I27,"") -> 321687.4499 | M50: =IFERROR('Salary Calculations'!J27,"") -> 80421.86247 | N50: =IFERROR('Salary Calculations'!K27,"") -> 19944.62189 | O50: =IFERROR('Salary Calculations'!L27,"") -> 4664.468023 | P50: =IFERROR('Salary Calculations'!M27,"") -> 19301.24699 | Q50: =IFERROR('Salary Calculations'!N27,"") -> 6433.748998 | R50: =IFERROR('Salary Calculations'!O27,"") -> 130765.9484 | S50: =IFERROR('Salary Calculations'!P27,"") -> 160843.7249 | T50: =IFERROR('Salary Calculations'!Q27,"") -> 30077.77657
D51: =IFERROR('Salary Calculations'!A28,"") -> 67 | E51: =IFERROR('Salary Calculations'!B28,"") -> 2649108.938 | F51: =IFERROR('Salary Calculations'!C28,"") -> 2000000 | G51: =IFERROR('Salary Calculations'!D28,"") -> 6622.772346 | H51: =IFERROR('Salary Calculations'!E28,"") -> 132455.4469 | I51: =IFERROR('Salary Calculations'!F28,"") -> 2774941.613 | J51: =IFERROR('Salary Calculations'!G28,"") -> 246090.8992 | K51: =IFERROR('Salary Calculations'!H28,"") -> 82030.29972 | L51: =IFERROR('Salary Calculations'!I28,"") -> 328121.1989 | M51: =IFERROR('Salary Calculations'!J28,"") -> 82030.29972 | N51: =IFERROR('Salary Calculations'!K28,"") -> 20343.51433 | O51: =IFERROR('Salary Calculations'!L28,"") -> 4757.757384 | P51: =IFERROR('Salary Calculations'!M28,"") -> 19687.27193 | Q51: =IFERROR('Salary Calculations'!N28,"") -> 6562.423978 | R51: =IFERROR('Salary Calculations'!O28,"") -> 133381.2673 | S51: =IFERROR('Salary Calculations'!P28,"") -> 164060.5994 | T51: =IFERROR('Salary Calculations'!Q28,"") -> 30679.3321
D52: =IFERROR('Salary Calculations'!A29,"") -> 68 | E52: =IFERROR('Salary Calculations'!B29,"") -> 2805620.945 | F52: =IFERROR('Salary Calculations'!C29,"") -> 2000000 | G52: =IFERROR('Salary Calculations'!D29,"") -> 7014.052363 | H52: =IFERROR('Salary Calculations'!E29,"") -> 140281.0473 | I52: =IFERROR('Salary Calculations'!F29,"") -> 2938887.94 | J52: =IFERROR('Salary Calculations'!G29,"") -> 251012.7172 | K52: =IFERROR('Salary Calculations'!H29,"") -> 83670.90572 | L52: =IFERROR('Salary Calculations'!I29,"") -> 334683.6229 | M52: =IFERROR('Salary Calculations'!J29,"") -> 83670.90572 | N52: =IFERROR('Salary Calculations'!K29,"") -> 20750.38462 | O52: =IFERROR('Salary Calculations'!L29,"") -> 4852.912532 | P52: =IFERROR('Salary Calculations'!M29,"") -> 20081.01737 | Q52: =IFERROR('Salary Calculations'!N29,"") -> 6693.672457 | R52: =IFERROR('Salary Calculations'!O29,"") -> 136048.8927 | S52: =IFERROR('Salary Calculations'!P29,"") -> 167341.8114 | T52: =IFERROR('Salary Calculations'!Q29,"") -> 31292.91874
D53: =IFERROR('Salary Calculations'!A30,"") -> 69 | E53: =IFERROR('Salary Calculations'!B30,"") -> 2970180.859 | F53: =IFERROR('Salary Calculations'!C30,"") -> 2000000 | G53: =IFERROR('Salary Calculations'!D30,"") -> 7425.452147 | H53: =IFERROR('Salary Calculations'!E30,"") -> 148509.0429 | I53: =IFERROR('Salary Calculations'!F30,"") -> 3111264.45 | J53: =IFERROR('Salary Calculations'!G30,"") -> 256032.9715 | K53: =IFERROR('Salary Calculations'!H30,"") -> 85344.32383 | L53: =IFERROR('Salary Calculations'!I30,"") -> 341377.2953 | M53: =IFERROR('Salary Calculations'!J30,"") -> 85344.32383 | N53: =IFERROR('Salary Calculations'!K30,"") -> 21165.39231 | O53: =IFERROR('Salary Calculations'!L30,"") -> 4949.970782 | P53: =IFERROR('Salary Calculations'!M30,"") -> 20482.63772 | Q53: =IFERROR('Salary Calculations'!N30,"") -> 6827.545907 | R53: =IFERROR('Salary Calculations'!O30,"") -> 138769.8706 | S53: =IFERROR('Salary Calculations'!P30,"") -> 170688.6477 | T53: =IFERROR('Salary Calculations'!Q30,"") -> 31918.77711
D54: =IFERROR('Salary Calculations'!A31,"") -> 70 | E54: =IFERROR('Salary Calculations'!B31,"") -> 3143183.227 | F54: =IFERROR('Salary Calculations'!C31,"") -> 2000000 | G54: =IFERROR('Salary Calculations'!D31,"") -> 7857.958067 | H54: =IFERROR('Salary Calculations'!E31,"") -> 157159.1613 | I54: =IFERROR('Salary Calculations'!F31,"") -> 3292484.43 | J54: =IFERROR('Salary Calculations'!G31,"") -> 261153.6309 | K54: =IFERROR('Salary Calculations'!H31,"") -> 87051.21031 | L54: =IFERROR('Salary Calculations'!I31,"") -> 348204.8412 | M54: =IFERROR('Salary Calculations'!J31,"") -> 87051.21031 | N54: =IFERROR('Salary Calculations'!K31,"") -> 21588.70016 | O54: =IFERROR('Salary Calculations'!L31,"") -> 5048.970198 | P54: =IFERROR('Salary Calculations'!M31,"") -> 20892.29047 | Q54: =IFERROR('Salary Calculations'!N31,"") -> 6964.096825 | R54: =IFERROR('Salary Calculations'!O31,"") -> 141545.268 | S54: =IFERROR('Salary Calculations'!P31,"") -> 174102.4206 | T54: =IFERROR('Salary Calculations'!Q31,"") -> 32557.15266
D55: =IFERROR('Salary Calculations'!A32,"") ->  | E55: =IFERROR('Salary Calculations'!B32,"") ->  | F55: =IFERROR('Salary Calculations'!C32,"") ->  | G55: =IFERROR('Salary Calculations'!D32,"") ->  | H55: =IFERROR('Salary Calculations'!E32,"") ->  | I55: =IFERROR('Salary Calculations'!F32,"") ->  | J55: =IFERROR('Salary Calculations'!G32,"") ->  | K55: =IFERROR('Salary Calculations'!H32,"") ->  | L55: =IFERROR('Salary Calculations'!I32,"") ->  | M55: =IFERROR('Salary Calculations'!J32,"") ->  | N55: =IFERROR('Salary Calculations'!K32,"") ->  | O55: =IFERROR('Salary Calculations'!L32,"") ->  | P55: =IFERROR('Salary Calculations'!M32,"") ->  | Q55: =IFERROR('Salary Calculations'!N32,"") ->  | R55: =IFERROR('Salary Calculations'!O32,"") ->  | S55: =IFERROR('Salary Calculations'!P32,"") ->  | T55: =IFERROR('Salary Calculations'!Q32,"") -> 
D56: =IFERROR('Salary Calculations'!A33,"") ->  | E56: =IFERROR('Salary Calculations'!B33,"") ->  | F56: =IFERROR('Salary Calculations'!C33,"") ->  | G56: =IFERROR('Salary Calculations'!D33,"") ->  | H56: =IFERROR('Salary Calculations'!E33,"") ->  | I56: =IFERROR('Salary Calculations'!F33,"") ->  | J56: =IFERROR('Salary Calculations'!G33,"") ->  | K56: =IFERROR('Salary Calculations'!H33,"") ->  | L56: =IFERROR('Salary Calculations'!I33,"") ->  | M56: =IFERROR('Salary Calculations'!J33,"") ->  | N56: =IFERROR('Salary Calculations'!K33,"") ->  | O56: =IFERROR('Salary Calculations'!L33,"") ->  | P56: =IFERROR('Salary Calculations'!M33,"") ->  | Q56: =IFERROR('Salary Calculations'!N33,"") ->  | R56: =IFERROR('Salary Calculations'!O33,"") ->  | S56: =IFERROR('Salary Calculations'!P33,"") ->  | T56: =IFERROR('Salary Calculations'!Q33,"") -> 
D57: =IFERROR('Salary Calculations'!A34,"") ->  | E57: =IFERROR('Salary Calculations'!B34,"") ->  | F57: =IFERROR('Salary Calculations'!C34,"") ->  | G57: =IFERROR('Salary Calculations'!D34,"") ->  | H57: =IFERROR('Salary Calculations'!E34,"") ->  | I57: =IFERROR('Salary Calculations'!F34,"") ->  | J57: =IFERROR('Salary Calculations'!G34,"") ->  | K57: =IFERROR('Salary Calculations'!H34,"") ->  | L57: =IFERROR('Salary Calculations'!I34,"") ->  | M57: =IFERROR('Salary Calculations'!J34,"") ->  | N57: =IFERROR('Salary Calculations'!K34,"") ->  | O57: =IFERROR('Salary Calculations'!L34,"") ->  | P57: =IFERROR('Salary Calculations'!M34,"") ->  | Q57: =IFERROR('Salary Calculations'!N34,"") ->  | R57: =IFERROR('Salary Calculations'!O34,"") ->  | S57: =IFERROR('Salary Calculations'!P34,"") ->  | T57: =IFERROR('Salary Calculations'!Q34,"") -> 
D58: =IFERROR('Salary Calculations'!A35,"") ->  | E58: =IFERROR('Salary Calculations'!B35,"") ->  | F58: =IFERROR('Salary Calculations'!C35,"") ->  | G58: =IFERROR('Salary Calculations'!D35,"") ->  | H58: =IFERROR('Salary Calculations'!E35,"") ->  | I58: =IFERROR('Salary Calculations'!F35,"") ->  | J58: =IFERROR('Salary Calculations'!G35,"") ->  | K58: =IFERROR('Salary Calculations'!H35,"") ->  | L58: =IFERROR('Salary Calculations'!I35,"") ->  | M58: =IFERROR('Salary Calculations'!J35,"") ->  | N58: =IFERROR('Salary Calculations'!K35,"") ->  | O58: =IFERROR('Salary Calculations'!L35,"") ->  | P58: =IFERROR('Salary Calculations'!M35,"") ->  | Q58: =IFERROR('Salary Calculations'!N35,"") ->  | R58: =IFERROR('Salary Calculations'!O35,"") ->  | S58: =IFERROR('Salary Calculations'!P35,"") ->  | T58: =IFERROR('Salary Calculations'!Q35,"") -> 
D59: =IFERROR('Salary Calculations'!A36,"") ->  | E59: =IFERROR('Salary Calculations'!B36,"") ->  | F59: =IFERROR('Salary Calculations'!C36,"") ->  | G59: =IFERROR('Salary Calculations'!D36,"") ->  | H59: =IFERROR('Salary Calculations'!E36,"") ->  | I59: =IFERROR('Salary Calculations'!F36,"") ->  | J59: =IFERROR('Salary Calculations'!G36,"") ->  | K59: =IFERROR('Salary Calculations'!H36,"") ->  | L59: =IFERROR('Salary Calculations'!I36,"") ->  | M59: =IFERROR('Salary Calculations'!J36,"") ->  | N59: =IFERROR('Salary Calculations'!K36,"") ->  | O59: =IFERROR('Salary Calculations'!L36,"") ->  | P59: =IFERROR('Salary Calculations'!M36,"") ->  | Q59: =IFERROR('Salary Calculations'!N36,"") ->  | R59: =IFERROR('Salary Calculations'!O36,"") ->  | S59: =IFERROR('Salary Calculations'!P36,"") ->  | T59: =IFERROR('Salary Calculations'!Q36,"") -> 
D60: =IFERROR('Salary Calculations'!A37,"") ->  | E60: =IFERROR('Salary Calculations'!B37,"") ->  | F60: =IFERROR('Salary Calculations'!C37,"") ->  | G60: =IFERROR('Salary Calculations'!D37,"") ->  | H60: =IFERROR('Salary Calculations'!E37,"") ->  | I60: =IFERROR('Salary Calculations'!F37,"") ->  | J60: =IFERROR('Salary Calculations'!G37,"") ->  | K60: =IFERROR('Salary Calculations'!H37,"") ->  | L60: =IFERROR('Salary Calculations'!I37,"") ->  | M60: =IFERROR('Salary Calculations'!J37,"") ->  | N60: =IFERROR('Salary Calculations'!K37,"") ->  | O60: =IFERROR('Salary Calculations'!L37,"") ->  | P60: =IFERROR('Salary Calculations'!M37,"") ->  | Q60: =IFERROR('Salary Calculations'!N37,"") ->  | R60: =IFERROR('Salary Calculations'!O37,"") ->  | S60: =IFERROR('Salary Calculations'!P37,"") ->  | T60: =IFERROR('Salary Calculations'!Q37,"") -> 
D61: =IFERROR('Salary Calculations'!A38,"") ->  | E61: =IFERROR('Salary Calculations'!B38,"") ->  | F61: =IFERROR('Salary Calculations'!C38,"") ->  | G61: =IFERROR('Salary Calculations'!D38,"") ->  | H61: =IFERROR('Salary Calculations'!E38,"") ->  | I61: =IFERROR('Salary Calculations'!F38,"") ->  | J61: =IFERROR('Salary Calculations'!G38,"") ->  | K61: =IFERROR('Salary Calculations'!H38,"") ->  | L61: =IFERROR('Salary Calculations'!I38,"") ->  | M61: =IFERROR('Salary Calculations'!J38,"") ->  | N61: =IFERROR('Salary Calculations'!K38,"") ->  | O61: =IFERROR('Salary Calculations'!L38,"") ->  | P61: =IFERROR('Salary Calculations'!M38,"") ->  | Q61: =IFERROR('Salary Calculations'!N38,"") ->  | R61: =IFERROR('Salary Calculations'!O38,"") ->  | S61: =IFERROR('Salary Calculations'!P38,"") ->  | T61: =IFERROR('Salary Calculations'!Q38,"") -> 
D62: =IFERROR('Salary Calculations'!A39,"") ->  | E62: =IFERROR('Salary Calculations'!B39,"") ->  | F62: =IFERROR('Salary Calculations'!C39,"") ->  | G62: =IFERROR('Salary Calculations'!D39,"") ->  | H62: =IFERROR('Salary Calculations'!E39,"") ->  | I62: =IFERROR('Salary Calculations'!F39,"") ->  | J62: =IFERROR('Salary Calculations'!G39,"") ->  | K62: =IFERROR('Salary Calculations'!H39,"") ->  | L62: =IFERROR('Salary Calculations'!I39,"") ->  | M62: =IFERROR('Salary Calculations'!J39,"") ->  | N62: =IFERROR('Salary Calculations'!K39,"") ->  | O62: =IFERROR('Salary Calculations'!L39,"") ->  | P62: =IFERROR('Salary Calculations'!M39,"") ->  | Q62: =IFERROR('Salary Calculations'!N39,"") ->  | R62: =IFERROR('Salary Calculations'!O39,"") ->  | S62: =IFERROR('Salary Calculations'!P39,"") ->  | T62: =IFERROR('Salary Calculations'!Q39,"") -> 
D63: =IFERROR('Salary Calculations'!A40,"") ->  | E63: =IFERROR('Salary Calculations'!B40,"") ->  | F63: =IFERROR('Salary Calculations'!C40,"") ->  | G63: =IFERROR('Salary Calculations'!D40,"") ->  | H63: =IFERROR('Salary Calculations'!E40,"") ->  | I63: =IFERROR('Salary Calculations'!F40,"") ->  | J63: =IFERROR('Salary Calculations'!G40,"") ->  | K63: =IFERROR('Salary Calculations'!H40,"") ->  | L63: =IFERROR('Salary Calculations'!I40,"") ->  | M63: =IFERROR('Salary Calculations'!J40,"") ->  | N63: =IFERROR('Salary Calculations'!K40,"") ->  | O63: =IFERROR('Salary Calculations'!L40,"") ->  | P63: =IFERROR('Salary Calculations'!M40,"") ->  | Q63: =IFERROR('Salary Calculations'!N40,"") ->  | R63: =IFERROR('Salary Calculations'!O40,"") ->  | S63: =IFERROR('Salary Calculations'!P40,"") ->  | T63: =IFERROR('Salary Calculations'!Q40,"") -> 
D64: =IFERROR('Salary Calculations'!A41,"") ->  | E64: =IFERROR('Salary Calculations'!B41,"") ->  | F64: =IFERROR('Salary Calculations'!C41,"") ->  | G64: =IFERROR('Salary Calculations'!D41,"") ->  | H64: =IFERROR('Salary Calculations'!E41,"") ->  | I64: =IFERROR('Salary Calculations'!F41,"") ->  | J64: =IFERROR('Salary Calculations'!G41,"") ->  | K64: =IFERROR('Salary Calculations'!H41,"") ->  | L64: =IFERROR('Salary Calculations'!I41,"") ->  | M64: =IFERROR('Salary Calculations'!J41,"") ->  | N64: =IFERROR('Salary Calculations'!K41,"") ->  | O64: =IFERROR('Salary Calculations'!L41,"") ->  | P64: =IFERROR('Salary Calculations'!M41,"") ->  | Q64: =IFERROR('Salary Calculations'!N41,"") ->  | R64: =IFERROR('Salary Calculations'!O41,"") ->  | S64: =IFERROR('Salary Calculations'!P41,"") ->  | T64: =IFERROR('Salary Calculations'!Q41,"") -> 
D65: =IFERROR('Salary Calculations'!A42,"") ->  | E65: =IFERROR('Salary Calculations'!B42,"") ->  | F65: =IFERROR('Salary Calculations'!C42,"") ->  | G65: =IFERROR('Salary Calculations'!D42,"") ->  | H65: =IFERROR('Salary Calculations'!E42,"") ->  | I65: =IFERROR('Salary Calculations'!F42,"") ->  | J65: =IFERROR('Salary Calculations'!G42,"") ->  | K65: =IFERROR('Salary Calculations'!H42,"") ->  | L65: =IFERROR('Salary Calculations'!I42,"") ->  | M65: =IFERROR('Salary Calculations'!J42,"") ->  | N65: =IFERROR('Salary Calculations'!K42,"") ->  | O65: =IFERROR('Salary Calculations'!L42,"") ->  | P65: =IFERROR('Salary Calculations'!M42,"") ->  | Q65: =IFERROR('Salary Calculations'!N42,"") ->  | R65: =IFERROR('Salary Calculations'!O42,"") ->  | S65: =IFERROR('Salary Calculations'!P42,"") ->  | T65: =IFERROR('Salary Calculations'!Q42,"") -> 
D66: =IFERROR('Salary Calculations'!A43,"") ->  | E66: =IFERROR('Salary Calculations'!B43,"") ->  | F66: =IFERROR('Salary Calculations'!C43,"") ->  | G66: =IFERROR('Salary Calculations'!D43,"") ->  | H66: =IFERROR('Salary Calculations'!E43,"") ->  | I66: =IFERROR('Salary Calculations'!F43,"") ->  | J66: =IFERROR('Salary Calculations'!G43,"") ->  | K66: =IFERROR('Salary Calculations'!H43,"") ->  | L66: =IFERROR('Salary Calculations'!I43,"") ->  | M66: =IFERROR('Salary Calculations'!J43,"") ->  | N66: =IFERROR('Salary Calculations'!K43,"") ->  | O66: =IFERROR('Salary Calculations'!L43,"") ->  | P66: =IFERROR('Salary Calculations'!M43,"") ->  | Q66: =IFERROR('Salary Calculations'!N43,"") ->  | R66: =IFERROR('Salary Calculations'!O43,"") ->  | S66: =IFERROR('Salary Calculations'!P43,"") ->  | T66: =IFERROR('Salary Calculations'!Q43,"") -> 
D67: =IFERROR('Salary Calculations'!A44,"") ->  | E67: =IFERROR('Salary Calculations'!B44,"") ->  | F67: =IFERROR('Salary Calculations'!C44,"") ->  | G67: =IFERROR('Salary Calculations'!D44,"") ->  | H67: =IFERROR('Salary Calculations'!E44,"") ->  | I67: =IFERROR('Salary Calculations'!F44,"") ->  | J67: =IFERROR('Salary Calculations'!G44,"") ->  | K67: =IFERROR('Salary Calculations'!H44,"") ->  | L67: =IFERROR('Salary Calculations'!I44,"") ->  | M67: =IFERROR('Salary Calculations'!J44,"") ->  | N67: =IFERROR('Salary Calculations'!K44,"") ->  | O67: =IFERROR('Salary Calculations'!L44,"") ->  | P67: =IFERROR('Salary Calculations'!M44,"") ->  | Q67: =IFERROR('Salary Calculations'!N44,"") ->  | R67: =IFERROR('Salary Calculations'!O44,"") ->  | S67: =IFERROR('Salary Calculations'!P44,"") ->  | T67: =IFERROR('Salary Calculations'!Q44,"") -> 
D68: =IFERROR('Salary Calculations'!A45,"") ->  | E68: =IFERROR('Salary Calculations'!B45,"") ->  | F68: =IFERROR('Salary Calculations'!C45,"") ->  | G68: =IFERROR('Salary Calculations'!D45,"") ->  | H68: =IFERROR('Salary Calculations'!E45,"") ->  | I68: =IFERROR('Salary Calculations'!F45,"") ->  | J68: =IFERROR('Salary Calculations'!G45,"") ->  | K68: =IFERROR('Salary Calculations'!H45,"") ->  | L68: =IFERROR('Salary Calculations'!I45,"") ->  | M68: =IFERROR('Salary Calculations'!J45,"") ->  | N68: =IFERROR('Salary Calculations'!K45,"") ->  | O68: =IFERROR('Salary Calculations'!L45,"") ->  | P68: =IFERROR('Salary Calculations'!M45,"") ->  | Q68: =IFERROR('Salary Calculations'!N45,"") ->  | R68: =IFERROR('Salary Calculations'!O45,"") ->  | S68: =IFERROR('Salary Calculations'!P45,"") ->  | T68: =IFERROR('Salary Calculations'!Q45,"") -> 
D69: =IFERROR('Salary Calculations'!A46,"") ->  | E69: =IFERROR('Salary Calculations'!B46,"") ->  | F69: =IFERROR('Salary Calculations'!C46,"") ->  | G69: =IFERROR('Salary Calculations'!D46,"") ->  | H69: =IFERROR('Salary Calculations'!E46,"") ->  | I69: =IFERROR('Salary Calculations'!F46,"") ->  | J69: =IFERROR('Salary Calculations'!G46,"") ->  | K69: =IFERROR('Salary Calculations'!H46,"") ->  | L69: =IFERROR('Salary Calculations'!I46,"") ->  | M69: =IFERROR('Salary Calculations'!J46,"") ->  | N69: =IFERROR('Salary Calculations'!K46,"") ->  | O69: =IFERROR('Salary Calculations'!L46,"") ->  | P69: =IFERROR('Salary Calculations'!M46,"") ->  | Q69: =IFERROR('Salary Calculations'!N46,"") ->  | R69: =IFERROR('Salary Calculations'!O46,"") ->  | S69: =IFERROR('Salary Calculations'!P46,"") ->  | T69: =IFERROR('Salary Calculations'!Q46,"") -> 
D70: =IFERROR('Salary Calculations'!A47,"") ->  | E70: =IFERROR('Salary Calculations'!B47,"") ->  | F70: =IFERROR('Salary Calculations'!C47,"") ->  | G70: =IFERROR('Salary Calculations'!D47,"") ->  | H70: =IFERROR('Salary Calculations'!E47,"") ->  | I70: =IFERROR('Salary Calculations'!F47,"") ->  | J70: =IFERROR('Salary Calculations'!G47,"") ->  | K70: =IFERROR('Salary Calculations'!H47,"") ->  | L70: =IFERROR('Salary Calculations'!I47,"") ->  | M70: =IFERROR('Salary Calculations'!J47,"") ->  | N70: =IFERROR('Salary Calculations'!K47,"") ->  | O70: =IFERROR('Salary Calculations'!L47,"") ->  | P70: =IFERROR('Salary Calculations'!M47,"") ->  | Q70: =IFERROR('Salary Calculations'!N47,"") ->  | R70: =IFERROR('Salary Calculations'!O47,"") ->  | S70: =IFERROR('Salary Calculations'!P47,"") ->  | T70: =IFERROR('Salary Calculations'!Q47,"") -> 
D71: =IFERROR('Salary Calculations'!A48,"") ->  | E71: =IFERROR('Salary Calculations'!B48,"") ->  | F71: =IFERROR('Salary Calculations'!C48,"") ->  | G71: =IFERROR('Salary Calculations'!D48,"") ->  | H71: =IFERROR('Salary Calculations'!E48,"") ->  | I71: =IFERROR('Salary Calculations'!F48,"") ->  | J71: =IFERROR('Salary Calculations'!G48,"") ->  | K71: =IFERROR('Salary Calculations'!H48,"") ->  | L71: =IFERROR('Salary Calculations'!I48,"") ->  | M71: =IFERROR('Salary Calculations'!J48,"") ->  | N71: =IFERROR('Salary Calculations'!K48,"") ->  | O71: =IFERROR('Salary Calculations'!L48,"") ->  | P71: =IFERROR('Salary Calculations'!M48,"") ->  | Q71: =IFERROR('Salary Calculations'!N48,"") ->  | R71: =IFERROR('Salary Calculations'!O48,"") ->  | S71: =IFERROR('Salary Calculations'!P48,"") ->  | T71: =IFERROR('Salary Calculations'!Q48,"") -> 
D72: =IFERROR('Salary Calculations'!A49,"") ->  | E72: =IFERROR('Salary Calculations'!B49,"") ->  | F72: =IFERROR('Salary Calculations'!C49,"") ->  | G72: =IFERROR('Salary Calculations'!D49,"") ->  | H72: =IFERROR('Salary Calculations'!E49,"") ->  | I72: =IFERROR('Salary Calculations'!F49,"") ->  | J72: =IFERROR('Salary Calculations'!G49,"") ->  | K72: =IFERROR('Salary Calculations'!H49,"") ->  | L72: =IFERROR('Salary Calculations'!I49,"") ->  | M72: =IFERROR('Salary Calculations'!J49,"") ->  | N72: =IFERROR('Salary Calculations'!K49,"") ->  | O72: =IFERROR('Salary Calculations'!L49,"") ->  | P72: =IFERROR('Salary Calculations'!M49,"") ->  | Q72: =IFERROR('Salary Calculations'!N49,"") ->  | R72: =IFERROR('Salary Calculations'!O49,"") ->  | S72: =IFERROR('Salary Calculations'!P49,"") ->  | T72: =IFERROR('Salary Calculations'!Q49,"") -> 
D73: =IFERROR('Salary Calculations'!A50,"") ->  | E73: =IFERROR('Salary Calculations'!B50,"") ->  | F73: =IFERROR('Salary Calculations'!C50,"") ->  | G73: =IFERROR('Salary Calculations'!D50,"") ->  | H73: =IFERROR('Salary Calculations'!E50,"") ->  | I73: =IFERROR('Salary Calculations'!F50,"") ->  | J73: =IFERROR('Salary Calculations'!G50,"") ->  | K73: =IFERROR('Salary Calculations'!H50,"") ->  | L73: =IFERROR('Salary Calculations'!I50,"") ->  | M73: =IFERROR('Salary Calculations'!J50,"") ->  | N73: =IFERROR('Salary Calculations'!K50,"") ->  | O73: =IFERROR('Salary Calculations'!L50,"") ->  | P73: =IFERROR('Salary Calculations'!M50,"") ->  | Q73: =IFERROR('Salary Calculations'!N50,"") ->  | R73: =IFERROR('Salary Calculations'!O50,"") ->  | S73: =IFERROR('Salary Calculations'!P50,"") ->  | T73: =IFERROR('Salary Calculations'!Q50,"") -> 
D74: =IFERROR('Salary Calculations'!A51,"") ->  | E74: =IFERROR('Salary Calculations'!B51,"") ->  | F74: =IFERROR('Salary Calculations'!C51,"") ->  | G74: =IFERROR('Salary Calculations'!D51,"") ->  | H74: =IFERROR('Salary Calculations'!E51,"") ->  | I74: =IFERROR('Salary Calculations'!F51,"") ->  | J74: =IFERROR('Salary Calculations'!G51,"") ->  | K74: =IFERROR('Salary Calculations'!H51,"") ->  | L74: =IFERROR('Salary Calculations'!I51,"") ->  | M74: =IFERROR('Salary Calculations'!J51,"") ->  | N74: =IFERROR('Salary Calculations'!K51,"") ->  | O74: =IFERROR('Salary Calculations'!L51,"") ->  | P74: =IFERROR('Salary Calculations'!M51,"") ->  | Q74: =IFERROR('Salary Calculations'!N51,"") ->  | R74: =IFERROR('Salary Calculations'!O51,"") ->  | S74: =IFERROR('Salary Calculations'!P51,"") ->  | T74: =IFERROR('Salary Calculations'!Q51,"") -> 
D75: =IFERROR('Salary Calculations'!A52,"") ->  | E75: =IFERROR('Salary Calculations'!B52,"") ->  | F75: =IFERROR('Salary Calculations'!C52,"") ->  | G75: =IFERROR('Salary Calculations'!D52,"") ->  | H75: =IFERROR('Salary Calculations'!E52,"") ->  | I75: =IFERROR('Salary Calculations'!F52,"") ->  | J75: =IFERROR('Salary Calculations'!G52,"") ->  | K75: =IFERROR('Salary Calculations'!H52,"") ->  | L75: =IFERROR('Salary Calculations'!I52,"") ->  | M75: =IFERROR('Salary Calculations'!J52,"") ->  | N75: =IFERROR('Salary Calculations'!K52,"") ->  | O75: =IFERROR('Salary Calculations'!L52,"") ->  | P75: =IFERROR('Salary Calculations'!M52,"") ->  | Q75: =IFERROR('Salary Calculations'!N52,"") ->  | R75: =IFERROR('Salary Calculations'!O52,"") ->  | S75: =IFERROR('Salary Calculations'!P52,"") ->  | T75: =IFERROR('Salary Calculations'!Q52,"") -> 
D76: =IFERROR('Salary Calculations'!A53,"") ->  | E76: =IFERROR('Salary Calculations'!B53,"") ->  | F76: =IFERROR('Salary Calculations'!C53,"") ->  | G76: =IFERROR('Salary Calculations'!D53,"") ->  | H76: =IFERROR('Salary Calculations'!E53,"") ->  | I76: =IFERROR('Salary Calculations'!F53,"") ->  | J76: =IFERROR('Salary Calculations'!G53,"") ->  | K76: =IFERROR('Salary Calculations'!H53,"") ->  | L76: =IFERROR('Salary Calculations'!I53,"") ->  | M76: =IFERROR('Salary Calculations'!J53,"") ->  | N76: =IFERROR('Salary Calculations'!K53,"") ->  | O76: =IFERROR('Salary Calculations'!L53,"") ->  | P76: =IFERROR('Salary Calculations'!M53,"") ->  | Q76: =IFERROR('Salary Calculations'!N53,"") ->  | R76: =IFERROR('Salary Calculations'!O53,"") ->  | S76: =IFERROR('Salary Calculations'!P53,"") ->  | T76: =IFERROR('Salary Calculations'!Q53,"") -> 
D77: =IFERROR('Salary Calculations'!A54,"") ->  | E77: =IFERROR('Salary Calculations'!B54,"") ->  | F77: =IFERROR('Salary Calculations'!C54,"") ->  | G77: =IFERROR('Salary Calculations'!D54,"") ->  | H77: =IFERROR('Salary Calculations'!E54,"") ->  | I77: =IFERROR('Salary Calculations'!F54,"") ->  | J77: =IFERROR('Salary Calculations'!G54,"") ->  | K77: =IFERROR('Salary Calculations'!H54,"") ->  | L77: =IFERROR('Salary Calculations'!I54,"") ->  | M77: =IFERROR('Salary Calculations'!J54,"") ->  | N77: =IFERROR('Salary Calculations'!K54,"") ->  | O77: =IFERROR('Salary Calculations'!L54,"") ->  | P77: =IFERROR('Salary Calculations'!M54,"") ->  | Q77: =IFERROR('Salary Calculations'!N54,"") ->  | R77: =IFERROR('Salary Calculations'!O54,"") ->  | S77: =IFERROR('Salary Calculations'!P54,"") ->  | T77: =IFERROR('Salary Calculations'!Q54,"") -> 
D78: =IFERROR('Salary Calculations'!A55,"") ->  | E78: =IFERROR('Salary Calculations'!B55,"") ->  | F78: =IFERROR('Salary Calculations'!C55,"") ->  | G78: =IFERROR('Salary Calculations'!D55,"") ->  | H78: =IFERROR('Salary Calculations'!E55,"") ->  | I78: =IFERROR('Salary Calculations'!F55,"") ->  | J78: =IFERROR('Salary Calculations'!G55,"") ->  | K78: =IFERROR('Salary Calculations'!H55,"") ->  | L78: =IFERROR('Salary Calculations'!I55,"") ->  | M78: =IFERROR('Salary Calculations'!J55,"") ->  | N78: =IFERROR('Salary Calculations'!K55,"") ->  | O78: =IFERROR('Salary Calculations'!L55,"") ->  | P78: =IFERROR('Salary Calculations'!M55,"") ->  | Q78: =IFERROR('Salary Calculations'!N55,"") ->  | R78: =IFERROR('Salary Calculations'!O55,"") ->  | S78: =IFERROR('Salary Calculations'!P55,"") ->  | T78: =IFERROR('Salary Calculations'!Q55,"") -> 
D79: =IFERROR('Salary Calculations'!A56,"") ->  | E79: =IFERROR('Salary Calculations'!B56,"") ->  | F79: =IFERROR('Salary Calculations'!C56,"") ->  | G79: =IFERROR('Salary Calculations'!D56,"") ->  | H79: =IFERROR('Salary Calculations'!E56,"") ->  | I79: =IFERROR('Salary Calculations'!F56,"") ->  | J79: =IFERROR('Salary Calculations'!G56,"") ->  | K79: =IFERROR('Salary Calculations'!H56,"") ->  | L79: =IFERROR('Salary Calculations'!I56,"") ->  | M79: =IFERROR('Salary Calculations'!J56,"") ->  | N79: =IFERROR('Salary Calculations'!K56,"") ->  | O79: =IFERROR('Salary Calculations'!L56,"") ->  | P79: =IFERROR('Salary Calculations'!M56,"") ->  | Q79: =IFERROR('Salary Calculations'!N56,"") ->  | R79: =IFERROR('Salary Calculations'!O56,"") ->  | S79: =IFERROR('Salary Calculations'!P56,"") ->  | T79: =IFERROR('Salary Calculations'!Q56,"") -> 
D80: =IFERROR('Salary Calculations'!A57,"") ->  | E80: =IFERROR('Salary Calculations'!B57,"") ->  | F80: =IFERROR('Salary Calculations'!C57,"") ->  | G80: =IFERROR('Salary Calculations'!D57,"") ->  | H80: =IFERROR('Salary Calculations'!E57,"") ->  | I80: =IFERROR('Salary Calculations'!F57,"") ->  | J80: =IFERROR('Salary Calculations'!G57,"") ->  | K80: =IFERROR('Salary Calculations'!H57,"") ->  | L80: =IFERROR('Salary Calculations'!I57,"") ->  | M80: =IFERROR('Salary Calculations'!J57,"") ->  | N80: =IFERROR('Salary Calculations'!K57,"") ->  | O80: =IFERROR('Salary Calculations'!L57,"") ->  | P80: =IFERROR('Salary Calculations'!M57,"") ->  | Q80: =IFERROR('Salary Calculations'!N57,"") ->  | R80: =IFERROR('Salary Calculations'!O57,"") ->  | S80: =IFERROR('Salary Calculations'!P57,"") ->  | T80: =IFERROR('Salary Calculations'!Q57,"") -> 
D81: =IFERROR('Salary Calculations'!A58,"") ->  | E81: =IFERROR('Salary Calculations'!B58,"") ->  | F81: =IFERROR('Salary Calculations'!C58,"") ->  | G81: =IFERROR('Salary Calculations'!D58,"") ->  | H81: =IFERROR('Salary Calculations'!E58,"") ->  | I81: =IFERROR('Salary Calculations'!F58,"") ->  | J81: =IFERROR('Salary Calculations'!G58,"") ->  | K81: =IFERROR('Salary Calculations'!H58,"") ->  | L81: =IFERROR('Salary Calculations'!I58,"") ->  | M81: =IFERROR('Salary Calculations'!J58,"") ->  | N81: =IFERROR('Salary Calculations'!K58,"") ->  | O81: =IFERROR('Salary Calculations'!L58,"") ->  | P81: =IFERROR('Salary Calculations'!M58,"") ->  | Q81: =IFERROR('Salary Calculations'!N58,"") ->  | R81: =IFERROR('Salary Calculations'!O58,"") ->  | S81: =IFERROR('Salary Calculations'!P58,"") ->  | T81: =IFERROR('Salary Calculations'!Q58,"") -> 
D82: =IFERROR('Salary Calculations'!A59,"") ->  | E82: =IFERROR('Salary Calculations'!B59,"") ->  | F82: =IFERROR('Salary Calculations'!C59,"") ->  | G82: =IFERROR('Salary Calculations'!D59,"") ->  | H82: =IFERROR('Salary Calculations'!E59,"") ->  | I82: =IFERROR('Salary Calculations'!F59,"") ->  | J82: =IFERROR('Salary Calculations'!G59,"") ->  | K82: =IFERROR('Salary Calculations'!H59,"") ->  | L82: =IFERROR('Salary Calculations'!I59,"") ->  | M82: =IFERROR('Salary Calculations'!J59,"") ->  | N82: =IFERROR('Salary Calculations'!K59,"") ->  | O82: =IFERROR('Salary Calculations'!L59,"") ->  | P82: =IFERROR('Salary Calculations'!M59,"") ->  | Q82: =IFERROR('Salary Calculations'!N59,"") ->  | R82: =IFERROR('Salary Calculations'!O59,"") ->  | S82: =IFERROR('Salary Calculations'!P59,"") ->  | T82: =IFERROR('Salary Calculations'!Q59,"") -> 
D83: =IFERROR('Salary Calculations'!A60,"") ->  | E83: =IFERROR('Salary Calculations'!B60,"") ->  | F83: =IFERROR('Salary Calculations'!C60,"") ->  | G83: =IFERROR('Salary Calculations'!D60,"") ->  | H83: =IFERROR('Salary Calculations'!E60,"") ->  | I83: =IFERROR('Salary Calculations'!F60,"") ->  | J83: =IFERROR('Salary Calculations'!G60,"") ->  | K83: =IFERROR('Salary Calculations'!H60,"") ->  | L83: =IFERROR('Salary Calculations'!I60,"") ->  | M83: =IFERROR('Salary Calculations'!J60,"") ->  | N83: =IFERROR('Salary Calculations'!K60,"") ->  | O83: =IFERROR('Salary Calculations'!L60,"") ->  | P83: =IFERROR('Salary Calculations'!M60,"") ->  | Q83: =IFERROR('Salary Calculations'!N60,"") ->  | R83: =IFERROR('Salary Calculations'!O60,"") ->  | S83: =IFERROR('Salary Calculations'!P60,"") ->  | T83: =IFERROR('Salary Calculations'!Q60,"") -> 
D84: =IFERROR('Salary Calculations'!A61,"") ->  | E84: =IFERROR('Salary Calculations'!B61,"") ->  | F84: =IFERROR('Salary Calculations'!C61,"") ->  | G84: =IFERROR('Salary Calculations'!D61,"") ->  | H84: =IFERROR('Salary Calculations'!E61,"") ->  | I84: =IFERROR('Salary Calculations'!F61,"") ->  | J84: =IFERROR('Salary Calculations'!G61,"") ->  | K84: =IFERROR('Salary Calculations'!H61,"") ->  | L84: =IFERROR('Salary Calculations'!I61,"") ->  | M84: =IFERROR('Salary Calculations'!J61,"") ->  | N84: =IFERROR('Salary Calculations'!K61,"") ->  | O84: =IFERROR('Salary Calculations'!L61,"") ->  | P84: =IFERROR('Salary Calculations'!M61,"") ->  | Q84: =IFERROR('Salary Calculations'!N61,"") ->  | R84: =IFERROR('Salary Calculations'!O61,"") ->  | S84: =IFERROR('Salary Calculations'!P61,"") ->  | T84: =IFERROR('Salary Calculations'!Q61,"") -> 
D85: =IFERROR('Salary Calculations'!A62,"") ->  | E85: =IFERROR('Salary Calculations'!B62,"") ->  | F85: =IFERROR('Salary Calculations'!C62,"") ->  | G85: =IFERROR('Salary Calculations'!D62,"") ->  | H85: =IFERROR('Salary Calculations'!E62,"") ->  | I85: =IFERROR('Salary Calculations'!F62,"") ->  | J85: =IFERROR('Salary Calculations'!G62,"") ->  | K85: =IFERROR('Salary Calculations'!H62,"") ->  | L85: =IFERROR('Salary Calculations'!I62,"") ->  | M85: =IFERROR('Salary Calculations'!J62,"") ->  | N85: =IFERROR('Salary Calculations'!K62,"") ->  | O85: =IFERROR('Salary Calculations'!L62,"") ->  | P85: =IFERROR('Salary Calculations'!M62,"") ->  | Q85: =IFERROR('Salary Calculations'!N62,"") ->  | R85: =IFERROR('Salary Calculations'!O62,"") ->  | S85: =IFERROR('Salary Calculations'!P62,"") ->  | T85: =IFERROR('Salary Calculations'!Q62,"") -> 
D86: =IFERROR('Salary Calculations'!A63,"") ->  | E86: =IFERROR('Salary Calculations'!B63,"") ->  | F86: =IFERROR('Salary Calculations'!C63,"") ->  | G86: =IFERROR('Salary Calculations'!D63,"") ->  | H86: =IFERROR('Salary Calculations'!E63,"") ->  | I86: =IFERROR('Salary Calculations'!F63,"") ->  | J86: =IFERROR('Salary Calculations'!G63,"") ->  | K86: =IFERROR('Salary Calculations'!H63,"") ->  | L86: =IFERROR('Salary Calculations'!I63,"") ->  | M86: =IFERROR('Salary Calculations'!J63,"") ->  | N86: =IFERROR('Salary Calculations'!K63,"") ->  | O86: =IFERROR('Salary Calculations'!L63,"") ->  | P86: =IFERROR('Salary Calculations'!M63,"") ->  | Q86: =IFERROR('Salary Calculations'!N63,"") ->  | R86: =IFERROR('Salary Calculations'!O63,"") ->  | S86: =IFERROR('Salary Calculations'!P63,"") ->  | T86: =IFERROR('Salary Calculations'!Q63,"") -> 
D87: =IFERROR('Salary Calculations'!A64,"") ->  | E87: =IFERROR('Salary Calculations'!B64,"") ->  | F87: =IFERROR('Salary Calculations'!C64,"") ->  | G87: =IFERROR('Salary Calculations'!D64,"") ->  | H87: =IFERROR('Salary Calculations'!E64,"") ->  | I87: =IFERROR('Salary Calculations'!F64,"") ->  | J87: =IFERROR('Salary Calculations'!G64,"") ->  | K87: =IFERROR('Salary Calculations'!H64,"") ->  | L87: =IFERROR('Salary Calculations'!I64,"") ->  | M87: =IFERROR('Salary Calculations'!J64,"") ->  | N87: =IFERROR('Salary Calculations'!K64,"") ->  | O87: =IFERROR('Salary Calculations'!L64,"") ->  | P87: =IFERROR('Salary Calculations'!M64,"") ->  | Q87: =IFERROR('Salary Calculations'!N64,"") ->  | R87: =IFERROR('Salary Calculations'!O64,"") ->  | S87: =IFERROR('Salary Calculations'!P64,"") ->  | T87: =IFERROR('Salary Calculations'!Q64,"") -> 
D88: =IFERROR('Salary Calculations'!A65,"") ->  | E88: =IFERROR('Salary Calculations'!B65,"") ->  | F88: =IFERROR('Salary Calculations'!C65,"") ->  | G88: =IFERROR('Salary Calculations'!D65,"") ->  | H88: =IFERROR('Salary Calculations'!E65,"") ->  | I88: =IFERROR('Salary Calculations'!F65,"") ->  | J88: =IFERROR('Salary Calculations'!G65,"") ->  | K88: =IFERROR('Salary Calculations'!H65,"") ->  | L88: =IFERROR('Salary Calculations'!I65,"") ->  | M88: =IFERROR('Salary Calculations'!J65,"") ->  | N88: =IFERROR('Salary Calculations'!K65,"") ->  | O88: =IFERROR('Salary Calculations'!L65,"") ->  | P88: =IFERROR('Salary Calculations'!M65,"") ->  | Q88: =IFERROR('Salary Calculations'!N65,"") ->  | R88: =IFERROR('Salary Calculations'!O65,"") ->  | S88: =IFERROR('Salary Calculations'!P65,"") ->  | T88: =IFERROR('Salary Calculations'!Q65,"") -> 
D89: =IFERROR('Salary Calculations'!A66,"") ->  | E89: =IFERROR('Salary Calculations'!B66,"") ->  | F89: =IFERROR('Salary Calculations'!C66,"") ->  | G89: =IFERROR('Salary Calculations'!D66,"") ->  | H89: =IFERROR('Salary Calculations'!E66,"") ->  | I89: =IFERROR('Salary Calculations'!F66,"") ->  | J89: =IFERROR('Salary Calculations'!G66,"") ->  | K89: =IFERROR('Salary Calculations'!H66,"") ->  | L89: =IFERROR('Salary Calculations'!I66,"") ->  | M89: =IFERROR('Salary Calculations'!J66,"") ->  | N89: =IFERROR('Salary Calculations'!K66,"") ->  | O89: =IFERROR('Salary Calculations'!L66,"") ->  | P89: =IFERROR('Salary Calculations'!M66,"") ->  | Q89: =IFERROR('Salary Calculations'!N66,"") ->  | R89: =IFERROR('Salary Calculations'!O66,"") ->  | S89: =IFERROR('Salary Calculations'!P66,"") ->  | T89: =IFERROR('Salary Calculations'!Q66,"") -> 
D90: =IFERROR('Salary Calculations'!A67,"") ->  | E90: =IFERROR('Salary Calculations'!B67,"") ->  | F90: =IFERROR('Salary Calculations'!C67,"") ->  | G90: =IFERROR('Salary Calculations'!D67,"") ->  | H90: =IFERROR('Salary Calculations'!E67,"") ->  | I90: =IFERROR('Salary Calculations'!F67,"") ->  | J90: =IFERROR('Salary Calculations'!G67,"") ->  | K90: =IFERROR('Salary Calculations'!H67,"") ->  | L90: =IFERROR('Salary Calculations'!I67,"") ->  | M90: =IFERROR('Salary Calculations'!J67,"") ->  | N90: =IFERROR('Salary Calculations'!K67,"") ->  | O90: =IFERROR('Salary Calculations'!L67,"") ->  | P90: =IFERROR('Salary Calculations'!M67,"") ->  | Q90: =IFERROR('Salary Calculations'!N67,"") ->  | R90: =IFERROR('Salary Calculations'!O67,"") ->  | S90: =IFERROR('Salary Calculations'!P67,"") ->  | T90: =IFERROR('Salary Calculations'!Q67,"") -> 
D91: =IFERROR('Salary Calculations'!A68,"") ->  | E91: =IFERROR('Salary Calculations'!B68,"") ->  | F91: =IFERROR('Salary Calculations'!C68,"") ->  | G91: =IFERROR('Salary Calculations'!D68,"") ->  | H91: =IFERROR('Salary Calculations'!E68,"") ->  | I91: =IFERROR('Salary Calculations'!F68,"") ->  | J91: =IFERROR('Salary Calculations'!G68,"") ->  | K91: =IFERROR('Salary Calculations'!H68,"") ->  | L91: =IFERROR('Salary Calculations'!I68,"") ->  | M91: =IFERROR('Salary Calculations'!J68,"") ->  | N91: =IFERROR('Salary Calculations'!K68,"") ->  | O91: =IFERROR('Salary Calculations'!L68,"") ->  | P91: =IFERROR('Salary Calculations'!M68,"") ->  | Q91: =IFERROR('Salary Calculations'!N68,"") ->  | R91: =IFERROR('Salary Calculations'!O68,"") ->  | S91: =IFERROR('Salary Calculations'!P68,"") ->  | T91: =IFERROR('Salary Calculations'!Q68,"") -> 
D92: =IFERROR('Salary Calculations'!A69,"") ->  | E92: =IFERROR('Salary Calculations'!B69,"") ->  | F92: =IFERROR('Salary Calculations'!C69,"") ->  | G92: =IFERROR('Salary Calculations'!D69,"") ->  | H92: =IFERROR('Salary Calculations'!E69,"") ->  | I92: =IFERROR('Salary Calculations'!F69,"") ->  | J92: =IFERROR('Salary Calculations'!G69,"") ->  | K92: =IFERROR('Salary Calculations'!H69,"") ->  | L92: =IFERROR('Salary Calculations'!I69,"") ->  | M92: =IFERROR('Salary Calculations'!J69,"") ->  | N92: =IFERROR('Salary Calculations'!K69,"") ->  | O92: =IFERROR('Salary Calculations'!L69,"") ->  | P92: =IFERROR('Salary Calculations'!M69,"") ->  | Q92: =IFERROR('Salary Calculations'!N69,"") ->  | R92: =IFERROR('Salary Calculations'!O69,"") ->  | S92: =IFERROR('Salary Calculations'!P69,"") ->  | T92: =IFERROR('Salary Calculations'!Q69,"") -> 
D93: =IFERROR('Salary Calculations'!A70,"") ->  | E93: =IFERROR('Salary Calculations'!B70,"") ->  | F93: =IFERROR('Salary Calculations'!C70,"") ->  | G93: =IFERROR('Salary Calculations'!D70,"") ->  | H93: =IFERROR('Salary Calculations'!E70,"") ->  | I93: =IFERROR('Salary Calculations'!F70,"") ->  | J93: =IFERROR('Salary Calculations'!G70,"") ->  | K93: =IFERROR('Salary Calculations'!H70,"") ->  | L93: =IFERROR('Salary Calculations'!I70,"") ->  | M93: =IFERROR('Salary Calculations'!J70,"") ->  | N93: =IFERROR('Salary Calculations'!K70,"") ->  | O93: =IFERROR('Salary Calculations'!L70,"") ->  | P93: =IFERROR('Salary Calculations'!M70,"") ->  | Q93: =IFERROR('Salary Calculations'!N70,"") ->  | R93: =IFERROR('Salary Calculations'!O70,"") ->  | S93: =IFERROR('Salary Calculations'!P70,"") ->  | T93: =IFERROR('Salary Calculations'!Q70,"") -> 

Sheet Salary Calculations
B1: Investments | G1: Income | J1: Deductions
A2: Age | B2: Savings | C2: Savings Requirement | D2: Investment Fees | E2: Return on Investments | F2: Net Investments | G2: Salary | H2: Pension | I2: Total Income | J2: Federal Taxes | K2: Social Security | L2: Medicare | M2: State Taxes | N2: Local Taxes | O2: Total Deductions | P2: Expenses | Q2: Net Income
A3: ='Salary Worksheet'!B5 -> 42 | B3: ='Salary Worksheet'!B7 -> 500000 | C3: =IF(ISERROR(A3),NA(),'Salary Worksheet'!$B$15) -> 2000000 | D3: ='Salary Worksheet'!$B$11*'Salary Calculations'!B3 -> 1250 | E3: ='Salary Worksheet'!$B$12*'Salary Calculations'!B3 -> 25000 | F3: =B3-D3+E3 -> 523750 | G3: ='Salary Worksheet'!$B$16 -> 150000 | H3: ='Salary Worksheet'!$B$17 -> 50000 | I3: =SUM(G3:H3) -> 200000 | J3: ='Salary Worksheet'!$B$8*'Salary Calculations'!I3 -> 50000 | K3: ='Salary Worksheet'!$B$13*'Salary Calculations'!I3 -> 12400 | L3: ='Salary Worksheet'!$B$14*'Salary Calculations'!I3 -> 2900 | M3: =IF('Salary Worksheet'!$B$18="Yes",'Salary Worksheet'!$B$9*'Salary Calculations'!I3,'Salary Worksheet'!$B$9*'Salary Calculations'!G3) -> 12000 | N3: ='Salary Worksheet'!$B$10*'Salary Calculations'!I3 -> 4000 | O3: =SUM(J3:N3) -> 81300 | P3: ='Salary Worksheet'!$B$19 -> 100000 | Q3: =I3-O3-P3 -> 18700
A4: =IF(A3<'Salary Worksheet'!$B$6,A3+1,NA()) -> 43 | B4: =IF(ISERROR(A4),NA(),F3+Q3) -> 542450 | C4: =IF(ISERROR(A4),NA(),'Salary Worksheet'!$B$15) -> 2000000 | D4: ='Salary Worksheet'!$B$11*'Salary Calculations'!B4 -> 1356.125 | E4: ='Salary Worksheet'!$B$12*'Salary Calculations'!B4 -> 27122.5 | F4: =B4-D4+E4 -> 568216.375 | G4: =G3*(1+'Salary Worksheet'!$B$20) -> 153000 | H4: =IF(ISERROR(A4),NA(),H3*(1+'Salary Worksheet'!$B$20)) -> 51000 | I4: =SUM(G4:H4) -> 204000 | J4: ='Salary Worksheet'!$B$8*'Salary Calculations'!I4 -> 51000 | K4: ='Salary Worksheet'!$B$13*'Salary Calculations'!I4 -> 12648 | L4: ='Salary Worksheet'!$B$14*'Salary Calculations'!I4 -> 2958 | M4: =IF('Salary Worksheet'!$B$18="Yes",'Salary Worksheet'!$B$9*'Salary Calculations'!I4,'Salary Worksheet'!$B$9*'Salary Calculations'!G4) -> 12240 | N4: ='Salary Worksheet'!$B$10*'Salary Calculations'!I4 -> 4080 | O4: =SUM(J4:N4) -> 82926 | P4: =IF(ISERROR(A4),NA(),P3*(1+'Salary Worksheet'!$B$20)) -> 102000 | Q4: =I4-O4-P4 -> 19074
A5: =IF(A4<'Salary Worksheet'!$B$6,A4+1,NA()) -> 44 | B5: =IF(ISERROR(A5),NA(),F4+Q4) -> 587290.375 | C5: =IF(ISERROR(A5),NA(),'Salary Worksheet'!$B$15) -> 2000000 | D5: ='Salary Worksheet'!$B$11*'Salary Calculations'!B5 -> 1468.225938 | E5: ='Salary Worksheet'!$B$12*'Salary Calculations'!B5 -> 29364.51875 | F5: =B5-D5+E5 -> 615186.6678 | G5: =IF(ISERROR(A5),NA(),G4*(1+'Salary Worksheet'!$B$20)) -> 156060 | H5: =IF(ISERROR(A5),NA(),H4*(1+'Salary Worksheet'!$B$20)) -> 52020 | I5: =SUM(G5:H5) -> 208080 | J5: ='Salary Worksheet'!$B$8*'Salary Calculations'!I5 -> 52020 | K5: ='Salary Worksheet'!$B$13*'Salary Calculations'!I5 -> 12900.96 | L5: ='Salary Worksheet'!$B$14*'Salary Calculations'!I5 -> 3017.16 | M5: =IF('Salary Worksheet'!$B$18="Yes",'Salary Worksheet'!$B$9*'Salary Calculations'!I5,'Salary Worksheet'!$B$9*'Salary Calculations'!G5) -> 12484.8 | N5: ='Salary Worksheet'!$B$10*'Salary Calculations'!I5 -> 4161.6 | O5: 84584.52 | P5: =IF(ISERROR(A5),NA(),P4*(1+'Salary Worksheet'!$B$20)) -> 104040 | Q5: =I5-O5-P5 -> 19455.48
A6: =IF(A5<'Salary Worksheet'!$B$6,A5+1,NA()) -> 45 | B6: 634642.1478 | C6: =IF(ISERROR(A6),NA(),'Salary Worksheet'!$B$15) -> 2000000 | D6: ='Salary Worksheet'!$B$11*'Salary Calculations'!B6 -> 1586.60537 | E6: ='Salary Worksheet'!$B$12*'Salary Calculations'!B6 -> 31732.10739 | F6: =B6-D6+E6 -> 664787.6498 | G6: =IF(ISERROR(A6),NA(),G5*(1+'Salary Worksheet'!$B$20)) -> 159181.2 | H6: =IF(ISERROR(A6),NA(),H5*(1+'Salary Worksheet'!$B$20)) -> 53060.4 | I6: =SUM(G6:H6) -> 212241.6 | J6: ='Salary Worksheet'!$B$8*'Salary Calculations'!I6 -> 53060.4 | K6: ='Salary Worksheet'!$B$13*'Salary Calculations'!I6 -> 13158.9792 | L6: ='Salary Worksheet'!$B$14*'Salary Calculations'!I6 -> 3077.5032 | M6: =IF('Salary Worksheet'!$B$18="Yes",'Salary Worksheet'!$B$9*'Salary Calculations'!I6,'Salary Worksheet'!$B$9*'Salary Calculations'!G6) -> 12734.496 | N6: ='Salary Worksheet'!$B$10*'Salary Calculations'!I6 -> 4244.832 | O6: 86276.2104 | P6: =IF(ISERROR(A6),NA(),P5*(1+'Salary Worksheet'!$B$20)) -> 106120.8 | Q6: =I6-O6-P6 -> 19844.5896
A7: =IF(A6<'Salary Worksheet'!$B$6,A6+1,NA()) -> 46 | B7: 684632.2394 | C7: =IF(ISERROR(A7),NA(),'Salary Worksheet'!$B$15) -> 2000000 | D7: ='Salary Worksheet'!$B$11*'Salary Calculations'!B7 -> 1711.580599 | E7: ='Salary Worksheet'!$B$12*'Salary Calculations'!B7 -> 34231.61197 | F7: =B7-D7+E7 -> 717152.2708 | G7: =IF(ISERROR(A7),NA(),G6*(1+'Salary Worksheet'!$B$20)) -> 162364.824 | H7: =IF(ISERROR(A7),NA(),H6*(1+'Salary Worksheet'!$B$20)) -> 54121.608 | I7: =SUM(G7:H7) -> 216486.432 | J7: ='Salary Worksheet'!$B$8*'Salary Calculations'!I7 -> 54121.608 | K7: ='Salary Worksheet'!$B$13*'Salary Calculations'!I7 -> 13422.15878 | L7: ='Salary Worksheet'!$B$14*'Salary Calculations'!I7 -> 3139.053264 | M7: =IF('Salary Worksheet'!$B$18="Yes",'Salary Worksheet'!$B$9*'Salary Calculations'!I7,'Salary Worksheet'!$B$9*'Salary Calculations'!G7) -> 12989.18592 | N7: ='Salary Worksheet'!$B$10*'Salary Calculations'!I7 -> 4329.72864 | O7: 88001.73461 | P7: =IF(ISERROR(A7),NA(),P6*(1+'Salary Worksheet'!$B$20)) -> 108243.216 | Q7: =I7-O7-P7 -> 20241.48139
A8: =IF(A7<'Salary Worksheet'!$B$6,A7+1,NA()) -> 47 | B8: 737393.7522 | C8: =IF(ISERROR(A8),NA(),'Salary Worksheet'!$B$15) -> 2000000 | D8: ='Salary Worksheet'!$B$11*'Salary Calculations'!B8 -> 1843.48438 | E8: ='Salary Worksheet'!$B$12*'Salary Calculations'!B8 -> 36869.68761 | F8: 772419.9554 | G8: =IF(ISERROR(A8),NA(),G7*(1+'Salary Worksheet'!$B$20)) -> 165612.1205 | H8: =IF(ISERROR(A8),NA(),H7*(1+'Salary Worksheet'!$B$20)) -> 55204.04016 | I8: 220816.1606 | J8: ='Salary Worksheet'!$B$8*'Salary Calculations'!I8 -> 55204.04016 | K8: ='Salary Worksheet'!$B$13*'Salary Calculations'!I8 -> 13690.60196 | L8: ='Salary Worksheet'!$B$14*'Salary Calculations'!I8 -> 3201.834329 | M8: =IF('Salary Worksheet'!$B$18="Yes",'Salary Worksheet'!$B$9*'Salary Calculations'!I8,'Salary Worksheet'!$B$9*'Salary Calculations'!G8) -> 13248.96964 | N8: ='Salary Worksheet'!$B$10*'Salary Calculations'!I8 -> 4416.323213 | O8: 89761.7693 | P8: =IF(ISERROR(A8),NA(),P7*(1+'Salary Worksheet'!$B$20)) -> 110408.0803 | Q8: 20646.31102
A9: =IF(A8<'Salary Worksheet'!$B$6,A8+1,NA()) -> 48 | B9: 793066.2664 | C9: =IF(ISERROR(A9),NA(),'Salary Worksheet'!$B$15) -> 2000000 | D9: ='Salary Worksheet'!$B$11*'Salary Calculations'!B9 -> 1982.665666 | E9: ='Salary Worksheet'!$B$12*'Salary Calculations'!B9 -> 39653.31332 | F9: 830736.9141 | G9: =IF(ISERROR(A9),NA(),G8*(1+'Salary Worksheet'!$B$20)) -> 168924.3629 | H9: =IF(ISERROR(A9),NA(),H8*(1+'Salary Worksheet'!$B$20)) -> 56308.12096 | I9: 225232.4839 | J9: ='Salary Worksheet'!$B$8*'Salary Calculations'!I9 -> 56308.12096 | K9: ='Salary Worksheet'!$B$13*'Salary Calculations'!I9 -> 13964.414 | L9: ='Salary Worksheet'!$B$14*'Salary Calculations'!I9 -> 3265.871016 | M9: =IF('Salary Worksheet'!$B$18="Yes",'Salary Worksheet'!$B$9*'Salary Calculations'!I9,'Salary Worksheet'!$B$9*'Salary Calculations'!G9) -> 13513.94903 | N9: ='Salary Worksheet'!$B$10*'Salary Calculations'!I9 -> 4504.649677 | O9: 91557.00469 | P9: =IF(ISERROR(A9),NA(),P8*(1+'Salary Worksheet'!$B$20)) -> 112616.2419 | Q9: 21059.23724
A10: =IF(A9<'Salary Worksheet'!$B$6,A9+1,NA()) -> 49 | B10: 851796.1513 | C10: =IF(ISERROR(A10),NA(),'Salary Worksheet'!$B$15) -> 2000000 | D10: ='Salary Worksheet'!$B$11*'Salary Calculations'!B10 -> 2129.490378 | E10: ='Salary Worksheet'!$B$12*'Salary Calculations'!B10 -> 42589.80757 | F10: 892256.4685 | G10: =IF(ISERROR(A10),NA(),G9*(1+'Salary Worksheet'!$B$20)) -> 172302.8501 | H10: =IF(ISERROR(A10),NA(),H9*(1+'Salary Worksheet'!$B$20)) -> 57434.28338 | I10: 229737.1335 | J10: ='Salary Worksheet'!$B$8*'Salary Calculations'!I10 -> 57434.28338 | K10: ='Salary Worksheet'!$B$13*'Salary Calculations'!I10 -> 14243.70228 | L10: ='Salary Worksheet'!$B$14*'Salary Calculations'!I10 -> 3331.188436 | M10: =IF('Salary Worksheet'!$B$18="Yes",'Salary Worksheet'!$B$9*'Salary Calculations'!I10,'Salary Worksheet'!$B$9*'Salary Calculations'!G10) -> 13784.22801 | N10: ='Salary Worksheet'!$B$10*'Salary Calculations'!I10 -> 4594.742671 | O10: 93388.14478 | P10: =IF(ISERROR(A10),NA(),P9*(1+'Salary Worksheet'!$B$20)) -> 114868.5668 | Q10: 21480.42199
A11: =IF(A10<'Salary Worksheet'!$B$6,A10+1,NA()) -> 50 | B11: 913736.8905 | C11: =IF(ISERROR(A11),NA(),'Salary Worksheet'!$B$15) -> 2000000 | D11: ='Salary Worksheet'!$B$11*'Salary Calculations'!B11 -> 2284.342226 | E11: ='Salary Worksheet'!$B$12*'Salary Calculations'!B11 -> 45686.84453 | F11: 957139.3928 | G11: =IF(ISERROR(A11),NA(),G10*(1+'Salary Worksheet'!$B$20)) -> 175748.9072 | H11: =IF(ISERROR(A11),NA(),H10*(1+'Salary Worksheet'!$B$20)) -> 58582.96905 | I11: 234331.8762 | J11: ='Salary Worksheet'!$B$8*'Salary Calculations'!I11 -> 58582.96905 | K11: ='Salary Worksheet'!$B$13*'Salary Calculations'!I11 -> 14528.57632 | L11: ='Salary Worksheet'!$B$14*'Salary Calculations'!I11 -> 3397.812205 | M11: =IF('Salary Worksheet'!$B$18="Yes",'Salary Worksheet'!$B$9*'Salary Calculations'!I11,'Salary Worksheet'!$B$9*'Salary Calculations'!G11) -> 14059.91257 | N11: ='Salary Worksheet'!$B$10*'Salary Calculations'!I11 -> 4686.637524 | O11: 95255.90768 | P11: =IF(ISERROR(A11),NA(),P10*(1+'Salary Worksheet'!$B$20)) -> 117165.9381 | Q11: 21910.03042
A12: =IF(A11<'Salary Worksheet'!$B$6,A11+1,NA()) -> 51 | B12: 979049.4232 | C12: =IF(ISERROR(A12),NA(),'Salary Worksheet'!$B$15) -> 2000000 | D12: ='Salary Worksheet'!$B$11*'Salary Calculations'!B12 -> 2447.623558 | E12: ='Salary Worksheet'!$B$12*'Salary Calculations'!B12 -> 48952.47116 | F12: 1025554.271 | G12: =IF(ISERROR(A12),NA(),G11*(1+'Salary Worksheet'!$B$20)) -> 179263.8853 | H12: =IF(ISERROR(A12),NA(),H11*(1+'Salary Worksheet'!$B$20)) -> 59754.62843 | I12: 239018.5137 | J12: ='Salary Worksheet'!$B$8*'Salary Calculations'!I12 -> 59754.62843 | K12: ='Salary Worksheet'!$B$13*'Salary Calculations'!I12 -> 14819.14785 | L12: ='Salary Worksheet'!$B$14*'Salary Calculations'!I12 -> 3465.768449 | M12: =IF('Salary Worksheet'!$B$18="Yes",'Salary Worksheet'!$B$9*'Salary Calculations'!I12,'Salary Worksheet'!$B$9*'Salary Calculations'!G12) -> 14341.11082 | N12: ='Salary Worksheet'!$B$10*'Salary Calculations'!I12 -> 4780.370274 | O12: 97161.02583 | P12: =IF(ISERROR(A12),NA(),P11*(1+'Salary Worksheet'!$B$20)) -> 119509.2569 | Q12: 22348.23103
A13: =IF(A12<'Salary Worksheet'!$B$6,A12+1,NA()) -> 52 | B13: 1047902.502 | C13: =IF(ISERROR(A13),NA(),'Salary Worksheet'!$B$15) -> 2000000 | D13: ='Salary Worksheet'!$B$11*'Salary Calculations'!B13 -> 2619.756255 | E13: ='Salary Worksheet'!$B$12*'Salary Calculations'!B13 -> 52395.12509 | F13: 1097677.871 | G13: =IF(ISERROR(A13),NA(),G12*(1+'Salary Worksheet'!$B$20)) -> 182849.163 | H13: =IF(ISERROR(A13),NA(),H12*(1+'Salary Worksheet'!$B$20)) -> 60949.721 | I13: 243798.884 | J13: ='Salary Worksheet'!$B$8*'Salary Calculations'!I13 -> 60949.721 | K13: ='Salary Worksheet'!$B$13*'Salary Calculations'!I13 -> 15115.53081 | L13: ='Salary Worksheet'!$B$14*'Salary Calculations'!I13 -> 3535.083818 | M13: =IF('Salary Worksheet'!$B$18="Yes",'Salary Worksheet'!$B$9*'Salary Calculations'!I13,'Salary Worksheet'!$B$9*'Salary Calculations'!G13) -> 14627.93304 | N13: ='Salary Worksheet'!$B$10*'Salary Calculations'!I13 -> 4875.97768 | O13: 99104.24635 | P13: =IF(ISERROR(A13),NA(),P12*(1+'Salary Worksheet'!$B$20)) -> 121899.442 | Q13: 22795.19565
A14: =IF(A13<'Salary Worksheet'!$B$6,A13+1,NA()) -> 53 | B14: 1120473.066 | C14: =IF(ISERROR(A14),NA(),'Salary Worksheet'!$B$15) -> 2000000 | D14: ='Salary Worksheet'!$B$11*'Salary Calculations'!B14 -> 2801.182666 | E14: ='Salary Worksheet'!$B$12*'Salary Calculations'!B14 -> 56023.65332 | F14: 1173695.537 | G14: =IF(ISERROR(A14),NA(),G13*(1+'Salary Worksheet'!$B$20)) -> 186506.1463 | H14: =IF(ISERROR(A14),NA(),H13*(1+'Salary Worksheet'!$B$20)) -> 62168.71542 | I14: 248674.8617 | J14: ='Salary Worksheet'!$B$8*'Salary Calculations'!I14 -> 62168.71542 | K14: ='Salary Worksheet'!$B$13*'Salary Calculations'!I14 -> 15417.84142 | L14: ='Salary Worksheet'!$B$14*'Salary Calculations'!I14 -> 3605.785494 | M14: =IF('Salary Worksheet'!$B$18="Yes",'Salary Worksheet'!$B$9*'Salary Calculations'!I14,'Salary Worksheet'!$B$9*'Salary Calculations'!G14) -> 14920.4917 | N14: ='Salary Worksheet'!$B$10*'Salary Calculations'!I14 -> 4973.497234 | O14: 101086.3313 | P14: =IF(ISERROR(A14),NA(),P13*(1+'Salary Worksheet'!$B$20)) -> 124337.4308 | Q14: 23251.09957
A15: =IF(A14<'Salary Worksheet'!$B$6,A14+1,NA()) -> 54 | B15: 1196946.637 | C15: =IF(ISERROR(A15),NA(),'Salary Worksheet'!$B$15) -> 2000000 | D15: ='Salary Worksheet'!$B$11*'Salary Calculations'!B15 -> 2992.366591 | E15: ='Salary Worksheet'!$B$12*'Salary Calculations'!B15 -> 59847.33183 | F15: 1253801.602 | G15: =IF(ISERROR(A15),NA(),G14*(1+'Salary Worksheet'!$B$20)) -> 190236.2692 | H15: =IF(ISERROR(A15),NA(),H14*(1+'Salary Worksheet'!$B$20)) -> 63412.08973 | I15: 253648.3589 | J15: ='Salary Worksheet'!$B$8*'Salary Calculations'!I15 -> 63412.08973 | K15: ='Salary Worksheet'!$B$13*'Salary Calculations'!I15 -> 15726.19825 | L15: ='Salary Worksheet'!$B$14*'Salary Calculations'!I15 -> 3677.901204 | M15: =IF('Salary Worksheet'!$B$18="Yes",'Salary Worksheet'!$B$9*'Salary Calculations'!I15,'Salary Worksheet'!$B$9*'Salary Calculations'!G15) -> 15218.90153 | N15: ='Salary Worksheet'!$B$10*'Salary Calculations'!I15 -> 5072.967178 | O15: 103108.0579 | P15: =IF(ISERROR(A15),NA(),P14*(1+'Salary Worksheet'!$B$20)) -> 126824.1795 | Q15: 23716.12156
A16: =IF(A15<'Salary Worksheet'!$B$6,A15+1,NA()) -> 55 | B16: 1277517.723 | C16: =IF(ISERROR(A16),NA(),'Salary Worksheet'!$B$15) -> 2000000 | D16: ='Salary Worksheet'!$B$11*'Salary Calculations'!B16 -> 3193.794308 | E16: ='Salary Worksheet'!$B$12*'Salary Calculations'!B16 -> 63875.88617 | F16: 1338199.815 | G16: =IF(ISERROR(A16),NA(),G15*(1+'Salary Worksheet'!$B$20)) -> 194040.9946 | H16: =IF(ISERROR(A16),NA(),H15*(1+'Salary Worksheet'!$B$20)) -> 64680.33152 | I16: 258721.3261 | J16: ='Salary Worksheet'!$B$8*'Salary Calculations'!I16 -> 64680.33152 | K16: ='Salary Worksheet'!$B$13*'Salary Calculations'!I16 -> 16040.72222 | L16: ='Salary Worksheet'!$B$14*'Salary Calculations'!I16 -> 3751.459228 | M16: =IF('Salary Worksheet'!$B$18="Yes",'Salary Worksheet'!$B$9*'Salary Calculations'!I16,'Salary Worksheet'!$B$9*'Salary Calculations'!G16) -> 15523.27957 | N16: ='Salary Worksheet'!$B$10*'Salary Calculations'!I16 -> 5174.426522 | O16: 105170.2191 | P16: =IF(ISERROR(A16),NA(),P15*(1+'Salary Worksheet'!$B$20)) -> 129360.663 | Q16: 24190.44399
A17: =IF(A16<'Salary Worksheet'!$B$6,A16+1,NA()) -> 56 | B17: 1362390.259 | C17: =IF(ISERROR(A17),NA(),'Salary Worksheet'!$B$15) -> 2000000 | D17: ='Salary Worksheet'!$B$11*'Salary Calculations'!B17 -> 3405.975648 | E17: ='Salary Worksheet'!$B$12*'Salary Calculations'!B17 -> 68119.51296 | F17: 1427103.797 | G17: =IF(ISERROR(A17),NA(),G16*(1+'Salary Worksheet'!$B$20)) -> 197921.8145 | H17: =IF(ISERROR(A17),NA(),H16*(1+'Salary Worksheet'!$B$20)) -> 65973.93815 | I17: 263895.7526 | J17: ='Salary Worksheet'!$B$8*'Salary Calculations'!I17 -> 65973.93815 | K17: ='Salary Worksheet'!$B$13*'Salary Calculations'!I17 -> 16361.53666 | L17: ='Salary Worksheet'!$B$14*'Salary Calculations'!I17 -> 3826.488413 | M17: =IF('Salary Worksheet'!$B$18="Yes",'Salary Worksheet'!$B$9*'Salary Calculations'!I17,'Salary Worksheet'!$B$9*'Salary Calculations'!G17) -> 15833.74516 | N17: ='Salary Worksheet'!$B$10*'Salary Calculations'!I17 -> 5277.915052 | O17: 107273.6234 | P17: =IF(ISERROR(A17),NA(),P16*(1+'Salary Worksheet'!$B$20)) -> 131947.8763 | Q17: 24674.25287
A18: =IF(A17<'Salary Worksheet'!$B$6,A17+1,NA()) -> 57 | B18: 1451778.049 | C18: =IF(ISERROR(A18),NA(),'Salary Worksheet'!$B$15) -> 2000000 | D18: ='Salary Worksheet'!$B$11*'Salary Calculations'!B18 -> 3629.445124 | E18: ='Salary Worksheet'!$B$12*'Salary Calculations'!B18 -> 72588.90247 | F18: 1520737.507 | G18: =IF(ISERROR(A18),NA(),G17*(1+'Salary Worksheet'!$B$20)) -> 201880.2507 | H18: =IF(ISERROR(A18),NA(),H17*(1+'Salary Worksheet'!$B$20)) -> 67293.41692 | I18: 269173.6677 | J18: ='Salary Worksheet'!$B$8*'Salary Calculations'!I18 -> 67293.41692 | K18: ='Salary Worksheet'!$B$13*'Salary Calculations'!I18 -> 16688.7674 | L18: ='Salary Worksheet'!$B$14*'Salary Calculations'!I18 -> 3903.018181 | M18: =IF('Salary Worksheet'!$B$18="Yes",'Salary Worksheet'!$B$9*'Salary Calculations'!I18,'Salary Worksheet'!$B$9*'Salary Calculations'!G18) -> 16150.42006 | N18: ='Salary Worksheet'!$B$10*'Salary Calculations'!I18 -> 5383.473353 | O18: 109419.0959 | P18: =IF(ISERROR(A18),NA(),P17*(1+'Salary Worksheet'!$B$20)) -> 134586.8338 | Q18: 25167.73793
A19: =IF(A18<'Salary Worksheet'!$B$6,A18+1,NA()) -> 58 | B19: 1545905.245 | C19: =IF(ISERROR(A19),NA(),'Salary Worksheet'!$B$15) -> 2000000 | D19: ='Salary Worksheet'!$B$11*'Salary Calculations'!B19 -> 3864.763112 | E19: ='Salary Worksheet'!$B$12*'Salary Calculations'!B19 -> 77295.26223 | F19: 1619335.744 | G19: =IF(ISERROR(A19),NA(),G18*(1+'Salary Worksheet'!$B$20)) -> 205917.8558 | H19: =IF(ISERROR(A19),NA(),H18*(1+'Salary Worksheet'!$B$20)) -> 68639.28525 | I19: 274557.141 | J19: ='Salary Worksheet'!$B$8*'Salary Calculations'!I19 -> 68639.28525 | K19: ='Salary Worksheet'!$B$13*'Salary Calculations'!I19 -> 17022.54274 | L19: ='Salary Worksheet'!$B$14*'Salary Calculations'!I19 -> 3981.078545 | M19: =IF('Salary Worksheet'!$B$18="Yes",'Salary Worksheet'!$B$9*'Salary Calculations'!I19,'Salary Worksheet'!$B$9*'Salary Calculations'!G19) -> 16473.42846 | N19: ='Salary Worksheet'!$B$10*'Salary Calculations'!I19 -> 5491.14282 | O19: 111607.4778 | P19: =IF(ISERROR(A19),NA(),P18*(1+'Salary Worksheet'!$B$20)) -> 137278.5705 | Q19: 25671.09269
A20: =IF(A19<'Salary Worksheet'!$B$6,A19+1,NA()) -> 59 | B20: 1645006.837 | C20: =IF(ISERROR(A20),NA(),'Salary Worksheet'!$B$15) -> 2000000 | D20: ='Salary Worksheet'!$B$11*'Salary Calculations'!B20 -> 4112.517091 | E20: ='Salary Worksheet'!$B$12*'Salary Calculations'!B20 -> 82250.34183 | F20: 1723144.661 | G20: =IF(ISERROR(A20),NA(),G19*(1+'Salary Worksheet'!$B$20)) -> 210036.2129 | H20: =IF(ISERROR(A20),NA(),H19*(1+'Salary Worksheet'!$B$20)) -> 70012.07096 | I20: 280048.2838 | J20: ='Salary Worksheet'!$B$8*'Salary Calculations'!I20 -> 70012.07096 | K20: ='Salary Worksheet'!$B$13*'Salary Calculations'!I20 -> 17362.9936 | L20: ='Salary Worksheet'!$B$14*'Salary Calculations'!I20 -> 4060.700116 | M20: =IF('Salary Worksheet'!$B$18="Yes",'Salary Worksheet'!$B$9*'Salary Calculations'!I20,'Salary Worksheet'!$B$9*'Salary Calculations'!G20) -> 16802.89703 | N20: ='Salary Worksheet'!$B$10*'Salary Calculations'!I20 -> 5600.965677 | O20: 113839.6274 | P20: =IF(ISERROR(A20),NA(),P19*(1+'Salary Worksheet'!$B$20)) -> 140024.1419 | Q20: 26184.51454
A21: =IF(A20<'Salary Worksheet'!$B$6,A20+1,NA()) -> 60 | B21: 1749329.176 | C21: =IF(ISERROR(A21),NA(),'Salary Worksheet'!$B$15) -> 2000000 | D21: ='Salary Worksheet'!$B$11*'Salary Calculations'!B21 -> 4373.322939 | E21: ='Salary Worksheet'!$B$12*'Salary Calculations'!B21 -> 87466.45879 | F21: 1832422.312 | G21: =IF(ISERROR(A21),NA(),G20*(1+'Salary Worksheet'!$B$20)) -> 214236.9371 | H21: =IF(ISERROR(A21),NA(),H20*(1+'Salary Worksheet'!$B$20)) -> 71412.31238 | I21: 285649.2495 | J21: ='Salary Worksheet'!$B$8*'Salary Calculations'!I21 -> 71412.31238 | K21: ='Salary Worksheet'!$B$13*'Salary Calculations'!I21 -> 17710.25347 | L21: ='Salary Worksheet'!$B$14*'Salary Calculations'!I21 -> 4141.914118 | M21: =IF('Salary Worksheet'!$B$18="Yes",'Salary Worksheet'!$B$9*'Salary Calculations'!I21,'Salary Worksheet'!$B$9*'Salary Calculations'!G21) -> 17138.95497 | N21: ='Salary Worksheet'!$B$10*'Salary Calculations'!I21 -> 5712.98499 | O21: 116116.4199 | P21: =IF(ISERROR(A21),NA(),P20*(1+'Salary Worksheet'!$B$20)) -> 142824.6248 | Q21: 26708.20483
A22: =IF(A21<'Salary Worksheet'!$B$6,A21+1,NA()) -> 61 | B22: 1859130.516 | C22: =IF(ISERROR(A22),NA(),'Salary Worksheet'!$B$15) -> 2000000 | D22: ='Salary Worksheet'!$B$11*'Salary Calculations'!B22 -> 4647.826291 | E22: ='Salary Worksheet'!$B$12*'Salary Calculations'!B22 -> 92956.52582 | F22: 1947439.216 | G22: =IF(ISERROR(A22),NA(),G21*(1+'Salary Worksheet'!$B$20)) -> 218521.6759 | H22: =IF(ISERROR(A22),NA(),H21*(1+'Salary Worksheet'!$B$20)) -> 72840.55863 | I22: 291362.2345 | J22: ='Salary Worksheet'!$B$8*'Salary Calculations'!I22 -> 72840.55863 | K22: ='Salary Worksheet'!$B$13*'Salary Calculations'!I22 -> 18064.45854 | L22: ='Salary Worksheet'!$B$14*'Salary Calculations'!I22 -> 4224.7524 | M22: =IF('Salary Worksheet'!$B$18="Yes",'Salary Worksheet'!$B$9*'Salary Calculations'!I22,'Salary Worksheet'!$B$9*'Salary Calculations'!G22) -> 17481.73407 | N22: ='Salary Worksheet'!$B$10*'Salary Calculations'!I22 -> 5827.24469 | O22: 118438.7483 | P22: =IF(ISERROR(A22),NA(),P21*(1+'Salary Worksheet'!$B$20)) -> 145681.1173 | Q22: 27242.36893
A23: =IF(A22<'Salary Worksheet'!$B$6,A22+1,NA()) -> 62 | B23: 1974681.585 | C23: =IF(ISERROR(A23),NA(),'Salary Worksheet'!$B$15) -> 2000000 | D23: ='Salary Worksheet'!$B$11*'Salary Calculations'!B23 -> 4936.703962 | E23: ='Salary Worksheet'!$B$12*'Salary Calculations'!B23 -> 98734.07925 | F23: 2068478.96 | G23: =IF(ISERROR(A23),NA(),G22*(1+'Salary Worksheet'!$B$20)) -> 222892.1094 | H23: =IF(ISERROR(A23),NA(),H22*(1+'Salary Worksheet'!$B$20)) -> 74297.3698 | I23: 297189.4792 | J23: ='Salary Worksheet'!$B$8*'Salary Calculations'!I23 -> 74297.3698 | K23: ='Salary Worksheet'!$B$13*'Salary Calculations'!I23 -> 18425.74771 | L23: ='Salary Worksheet'!$B$14*'Salary Calculations'!I23 -> 4309.247448 | M23: =IF('Salary Worksheet'!$B$18="Yes",'Salary Worksheet'!$B$9*'Salary Calculations'!I23,'Salary Worksheet'!$B$9*'Salary Calculations'!G23) -> 17831.36875 | N23: ='Salary Worksheet'!$B$10*'Salary Calculations'!I23 -> 5943.789584 | O23: 120807.5233 | P23: =IF(ISERROR(A23),NA(),P22*(1+'Salary Worksheet'!$B$20)) -> 148594.7396 | Q23: 27787.2163
A24: =IF(A23<'Salary Worksheet'!$B$6,A23+1,NA()) -> 63 | B24: 2096266.177 | C24: =IF(ISERROR(A24),NA(),'Salary Worksheet'!$B$15) -> 2000000 | D24: ='Salary Worksheet'!$B$11*'Salary Calculations'!B24 -> 5240.665441 | E24: ='Salary Worksheet'!$B$12*'Salary Calculations'!B24 -> 104813.3088 | F24: 2195838.82 | G24: =IF(ISERROR(A24),NA(),G23*(1+'Salary Worksheet'!$B$20)) -> 227349.9516 | H24: =IF(ISERROR(A24),NA(),H23*(1+'Salary Worksheet'!$B$20)) -> 75783.31719 | I24: 303133.2688 | J24: ='Salary Worksheet'!$B$8*'Salary Calculations'!I24 -> 75783.31719 | K24: ='Salary Worksheet'!$B$13*'Salary Calculations'!I24 -> 18794.26266 | L24: ='Salary Worksheet'!$B$14*'Salary Calculations'!I24 -> 4395.432397 | M24: =IF('Salary Worksheet'!$B$18="Yes",'Salary Worksheet'!$B$9*'Salary Calculations'!I24,'Salary Worksheet'!$B$9*'Salary Calculations'!G24) -> 18187.99613 | N24: ='Salary Worksheet'!$B$10*'Salary Calculations'!I24 -> 6062.665376 | O24: 123223.6738 | P24: =IF(ISERROR(A24),NA(),P23*(1+'Salary Worksheet'!$B$20)) -> 151566.6344 | Q24: 28342.96063
A25: =IF(A24<'Salary Worksheet'!$B$6,A24+1,NA()) -> 64 | B25: 2224181.781 | C25: =IF(ISERROR(A25),NA(),'Salary Worksheet'!$B$15) -> 2000000 | D25: ='Salary Worksheet'!$B$11*'Salary Calculations'!B25 -> 5560.454451 | E25: ='Salary Worksheet'!$B$12*'Salary Calculations'!B25 -> 111209.089 | F25: 2329830.415 | G25: =IF(ISERROR(A25),NA(),G24*(1+'Salary Worksheet'!$B$20)) -> 231896.9506 | H25: =IF(ISERROR(A25),NA(),H24*(1+'Salary Worksheet'!$B$20)) -> 77298.98354 | I25: 309195.9342 | J25: ='Salary Worksheet'!$B$8*'Salary Calculations'!I25 -> 77298.98354 | K25: ='Salary Worksheet'!$B$13*'Salary Calculations'!I25 -> 19170.14792 | L25: ='Salary Worksheet'!$B$14*'Salary Calculations'!I25 -> 4483.341045 | M25: =IF('Salary Worksheet'!$B$18="Yes",'Salary Worksheet'!$B$9*'Salary Calculations'!I25,'Salary Worksheet'!$B$9*'Salary Calculations'!G25) -> 18551.75605 | N25: ='Salary Worksheet'!$B$10*'Salary Calculations'!I25 -> 6183.918683 | O25: 125688.1472 | P25: =IF(ISERROR(A25),NA(),P24*(1+'Salary Worksheet'!$B$20)) -> 154597.9671 | Q25: 28909.81984
A26: =IF(A25<'Salary Worksheet'!$B$6,A25+1,NA()) -> 65 | B26: 2358740.235 | C26: =IF(ISERROR(A26),NA(),'Salary Worksheet'!$B$15) -> 2000000 | D26: ='Salary Worksheet'!$B$11*'Salary Calculations'!B26 -> 5896.850587 | E26: ='Salary Worksheet'!$B$12*'Salary Calculations'!B26 -> 117937.0117 | F26: 2470780.396 | G26: =IF(ISERROR(A26),NA(),G25*(1+'Salary Worksheet'!$B$20)) -> 236534.8896 | H26: =IF(ISERROR(A26),NA(),H25*(1+'Salary Worksheet'!$B$20)) -> 78844.96321 | I26: 315379.8528 | J26: ='Salary Worksheet'!$B$8*'Salary Calculations'!I26 -> 78844.96321 | K26: ='Salary Worksheet'!$B$13*'Salary Calculations'!I26 -> 19553.55088 | L26: ='Salary Worksheet'!$B$14*'Salary Calculations'!I26 -> 4573.007866 | M26: =IF('Salary Worksheet'!$B$18="Yes",'Salary Worksheet'!$B$9*'Salary Calculations'!I26,'Salary Worksheet'!$B$9*'Salary Calculations'!G26) -> 18922.79117 | N26: ='Salary Worksheet'!$B$10*'Salary Calculations'!I26 -> 6307.597057 | O26: 128201.9102 | P26: =IF(ISERROR(A26),NA(),P25*(1+'Salary Worksheet'!$B$20)) -> 157689.9264 | Q26: 29488.01624
A27: =IF(A26<'Salary Worksheet'!$B$6,A26+1,NA()) -> 66 | B27: 2500268.412 | C27: =IF(ISERROR(A27),NA(),'Salary Worksheet'!$B$15) -> 2000000 | D27: ='Salary Worksheet'!$B$11*'Salary Calculations'!B27 -> 6250.671031 | E27: ='Salary Worksheet'!$B$12*'Salary Calculations'!B27 -> 125013.4206 | F27: 2619031.162 | G27: =IF(ISERROR(A27),NA(),G26*(1+'Salary Worksheet'!$B$20)) -> 241265.5874 | H27: =IF(ISERROR(A27),NA(),H26*(1+'Salary Worksheet'!$B$20)) -> 80421.86247 | I27: 321687.4499 | J27: ='Salary Worksheet'!$B$8*'Salary Calculations'!I27 -> 80421.86247 | K27: ='Salary Worksheet'!$B$13*'Salary Calculations'!I27 -> 19944.62189 | L27: ='Salary Worksheet'!$B$14*'Salary Calculations'!I27 -> 4664.468023 | M27: =IF('Salary Worksheet'!$B$18="Yes",'Salary Worksheet'!$B$9*'Salary Calculations'!I27,'Salary Worksheet'!$B$9*'Salary Calculations'!G27) -> 19301.24699 | N27: ='Salary Worksheet'!$B$10*'Salary Calculations'!I27 -> 6433.748998 | O27: 130765.9484 | P27: =IF(ISERROR(A27),NA(),P26*(1+'Salary Worksheet'!$B$20)) -> 160843.7249 | Q27: 30077.77657
A28: =IF(A27<'Salary Worksheet'!$B$6,A27+1,NA()) -> 67 | B28: 2649108.938 | C28: =IF(ISERROR(A28),NA(),'Salary Worksheet'!$B$15) -> 2000000 | D28: ='Salary Worksheet'!$B$11*'Salary Calculations'!B28 -> 6622.772346 | E28: ='Salary Worksheet'!$B$12*'Salary Calculations'!B28 -> 132455.4469 | F28: 2774941.613 | G28: =IF(ISERROR(A28),NA(),G27*(1+'Salary Worksheet'!$B$20)) -> 246090.8992 | H28: =IF(ISERROR(A28),NA(),H27*(1+'Salary Worksheet'!$B$20)) -> 82030.29972 | I28: 328121.1989 | J28: ='Salary Worksheet'!$B$8*'Salary Calculations'!I28 -> 82030.29972 | K28: ='Salary Worksheet'!$B$13*'Salary Calculations'!I28 -> 20343.51433 | L28: ='Salary Worksheet'!$B$14*'Salary Calculations'!I28 -> 4757.757384 | M28: =IF('Salary Worksheet'!$B$18="Yes",'Salary Worksheet'!$B$9*'Salary Calculations'!I28,'Salary Worksheet'!$B$9*'Salary Calculations'!G28) -> 19687.27193 | N28: ='Salary Worksheet'!$B$10*'Salary Calculations'!I28 -> 6562.423978 | O28: 133381.2673 | P28: =IF(ISERROR(A28),NA(),P27*(1+'Salary Worksheet'!$B$20)) -> 164060.5994 | Q28: 30679.3321
A29: =IF(A28<'Salary Worksheet'!$B$6,A28+1,NA()) -> 68 | B29: 2805620.945 | C29: =IF(ISERROR(A29),NA(),'Salary Worksheet'!$B$15) -> 2000000 | D29: ='Salary Worksheet'!$B$11*'Salary Calculations'!B29 -> 7014.052363 | E29: ='Salary Worksheet'!$B$12*'Salary Calculations'!B29 -> 140281.0473 | F29: 2938887.94 | G29: =IF(ISERROR(A29),NA(),G28*(1+'Salary Worksheet'!$B$20)) -> 251012.7172 | H29: =IF(ISERROR(A29),NA(),H28*(1+'Salary Worksheet'!$B$20)) -> 83670.90572 | I29: 334683.6229 | J29: ='Salary Worksheet'!$B$8*'Salary Calculations'!I29 -> 83670.90572 | K29: ='Salary Worksheet'!$B$13*'Salary Calculations'!I29 -> 20750.38462 | L29: ='Salary Worksheet'!$B$14*'Salary Calculations'!I29 -> 4852.912532 | M29: =IF('Salary Worksheet'!$B$18="Yes",'Salary Worksheet'!$B$9*'Salary Calculations'!I29,'Salary Worksheet'!$B$9*'Salary Calculations'!G29) -> 20081.01737 | N29: ='Salary Worksheet'!$B$10*'Salary Calculations'!I29 -> 6693.672457 | O29: 136048.8927 | P29: =IF(ISERROR(A29),NA(),P28*(1+'Salary Worksheet'!$B$20)) -> 167341.8114 | Q29: 31292.91874
A30: =IF(A29<'Salary Worksheet'!$B$6,A29+1,NA()) -> 69 | B30: 2970180.859 | C30: =IF(ISERROR(A30),NA(),'Salary Worksheet'!$B$15) -> 2000000 | D30: ='Salary Worksheet'!$B$11*'Salary Calculations'!B30 -> 7425.452147 | E30: ='Salary Worksheet'!$B$12*'Salary Calculations'!B30 -> 148509.0429 | F30: 3111264.45 | G30: =IF(ISERROR(A30),NA(),G29*(1+'Salary Worksheet'!$B$20)) -> 256032.9715 | H30: =IF(ISERROR(A30),NA(),H29*(1+'Salary Worksheet'!$B$20)) -> 85344.32383 | I30: 341377.2953 | J30: ='Salary Worksheet'!$B$8*'Salary Calculations'!I30 -> 85344.32383 | K30: ='Salary Worksheet'!$B$13*'Salary Calculations'!I30 -> 21165.39231 | L30: ='Salary Worksheet'!$B$14*'Salary Calculations'!I30 -> 4949.970782 | M30: =IF('Salary Worksheet'!$B$18="Yes",'Salary Worksheet'!$B$9*'Salary Calculations'!I30,'Salary Worksheet'!$B$9*'Salary Calculations'!G30) -> 20482.63772 | N30: ='Salary Worksheet'!$B$10*'Salary Calculations'!I30 -> 6827.545907 | O30: 138769.8706 | P30: =IF(ISERROR(A30),NA(),P29*(1+'Salary Worksheet'!$B$20)) -> 170688.6477 | Q30: 31918.77711
A31: =IF(A30<'Salary Worksheet'!$B$6,A30+1,NA()) -> 70 | B31: 3143183.227 | C31: =IF(ISERROR(A31),NA(),'Salary Worksheet'!$B$15) -> 2000000 | D31: ='Salary Worksheet'!$B$11*'Salary Calculations'!B31 -> 7857.958067 | E31: ='Salary Worksheet'!$B$12*'Salary Calculations'!B31 -> 157159.1613 | F31: 3292484.43 | G31: =IF(ISERROR(A31),NA(),G30*(1+'Salary Worksheet'!$B$20)) -> 261153.6309 | H31: =IF(ISERROR(A31),NA(),H30*(1+'Salary Worksheet'!$B$20)) -> 87051.21031 | I31: 348204.8412 | J31: ='Salary Worksheet'!$B$8*'Salary Calculations'!I31 -> 87051.21031 | K31: ='Salary Worksheet'!$B$13*'Salary Calculations'!I31 -> 21588.70016 | L31: ='Salary Worksheet'!$B$14*'Salary Calculations'!I31 -> 5048.970198 | M31: =IF('Salary Worksheet'!$B$18="Yes",'Salary Worksheet'!$B$9*'Salary Calculations'!I31,'Salary Worksheet'!$B$9*'Salary Calculations'!G31) -> 20892.29047 | N31: ='Salary Worksheet'!$B$10*'Salary Calculations'!I31 -> 6964.096825 | O31: 141545.268 | P31: =IF(ISERROR(A31),NA(),P30*(1+'Salary Worksheet'!$B$20)) -> 174102.4206 | Q31: 32557.15266
A32: =IF(A31<'Salary Worksheet'!$B$6,A31+1,NA()) ->  | C32: =IF(ISERROR(A32),NA(),'Salary Worksheet'!$B$15) ->  | D32: ='Salary Worksheet'!$B$11*'Salary Calculations'!B32 ->  | E32: ='Salary Worksheet'!$B$12*'Salary Calculations'!B32 ->  | G32: =IF(ISERROR(A32),NA(),G31*(1+'Salary Worksheet'!$B$20)) ->  | H32: =IF(ISERROR(A32),NA(),H31*(1+'Salary Worksheet'!$B$20)) ->  | J32: ='Salary Worksheet'!$B$8*'Salary Calculations'!I32 ->  | K32: ='Salary Worksheet'!$B$13*'Salary Calculations'!I32 ->  | L32: ='Salary Worksheet'!$B$14*'Salary Calculations'!I32 ->  | M32: =IF('Salary Worksheet'!$B$18="Yes",'Salary Worksheet'!$B$9*'Salary Calculations'!I32,'Salary Worksheet'!$B$9*'Salary Calculations'!G32) ->  | N32: ='Salary Worksheet'!$B$10*'Salary Calculations'!I32 ->  | P32: =IF(ISERROR(A32),NA(),P31*(1+'Salary Worksheet'!$B$20)) -> 
A33: =IF(A32<'Salary Worksheet'!$B$6,A32+1,NA()) ->  | C33: =IF(ISERROR(A33),NA(),'Salary Worksheet'!$B$15) ->  | D33: ='Salary Worksheet'!$B$11*'Salary Calculations'!B33 ->  | E33: ='Salary Worksheet'!$B$12*'Salary Calculations'!B33 ->  | G33: =IF(ISERROR(A33),NA(),G32*(1+'Salary Worksheet'!$B$20)) ->  | H33: =IF(ISERROR(A33),NA(),H32*(1+'Salary Worksheet'!$B$20)) ->  | J33: ='Salary Worksheet'!$B$8*'Salary Calculations'!I33 ->  | K33: ='Salary Worksheet'!$B$13*'Salary Calculations'!I33 ->  | L33: ='Salary Worksheet'!$B$14*'Salary Calculations'!I33 ->  | M33: =IF('Salary Worksheet'!$B$18="Yes",'Salary Worksheet'!$B$9*'Salary Calculations'!I33,'Salary Worksheet'!$B$9*'Salary Calculations'!G33) ->  | N33: ='Salary Worksheet'!$B$10*'Salary Calculations'!I33 ->  | P33: =IF(ISERROR(A33),NA(),P32*(1+'Salary Worksheet'!$B$20)) -> 
A34: =IF(A33<'Salary Worksheet'!$B$6,A33+1,NA()) ->  | C34: =IF(ISERROR(A34),NA(),'Salary Worksheet'!$B$15) ->  | D34: ='Salary Worksheet'!$B$11*'Salary Calculations'!B34 ->  | E34: ='Salary Worksheet'!$B$12*'Salary Calculations'!B34 ->  | G34: =IF(ISERROR(A34),NA(),G33*(1+'Salary Worksheet'!$B$20)) ->  | H34: =IF(ISERROR(A34),NA(),H33*(1+'Salary Worksheet'!$B$20)) ->  | J34: ='Salary Worksheet'!$B$8*'Salary Calculations'!I34 ->  | K34: ='Salary Worksheet'!$B$13*'Salary Calculations'!I34 ->  | L34: ='Salary Worksheet'!$B$14*'Salary Calculations'!I34 ->  | M34: =IF('Salary Worksheet'!$B$18="Yes",'Salary Worksheet'!$B$9*'Salary Calculations'!I34,'Salary Worksheet'!$B$9*'Salary Calculations'!G34) ->  | N34: ='Salary Worksheet'!$B$10*'Salary Calculations'!I34 ->  | P34: =IF(ISERROR(A34),NA(),P33*(1+'Salary Worksheet'!$B$20)) -> 
A35: =IF(A34<'Salary Worksheet'!$B$6,A34+1,NA()) ->  | C35: =IF(ISERROR(A35),NA(),'Salary Worksheet'!$B$15) ->  | D35: ='Salary Worksheet'!$B$11*'Salary Calculations'!B35 ->  | E35: ='Salary Worksheet'!$B$12*'Salary Calculations'!B35 ->  | G35: =IF(ISERROR(A35),NA(),G34*(1+'Salary Worksheet'!$B$20)) ->  | H35: =IF(ISERROR(A35),NA(),H34*(1+'Salary Worksheet'!$B$20)) ->  | J35: ='Salary Worksheet'!$B$8*'Salary Calculations'!I35 ->  | K35: ='Salary Worksheet'!$B$13*'Salary Calculations'!I35 ->  | L35: ='Salary Worksheet'!$B$14*'Salary Calculations'!I35 ->  | M35: =IF('Salary Worksheet'!$B$18="Yes",'Salary Worksheet'!$B$9*'Salary Calculations'!I35,'Salary Worksheet'!$B$9*'Salary Calculations'!G35) ->  | N35: ='Salary Worksheet'!$B$10*'Salary Calculations'!I35 ->  | P35: =IF(ISERROR(A35),NA(),P34*(1+'Salary Worksheet'!$B$20)) -> 
A36: =IF(A35<'Salary Worksheet'!$B$6,A35+1,NA()) ->  | C36: =IF(ISERROR(A36),NA(),'Salary Worksheet'!$B$15) ->  | D36: ='Salary Worksheet'!$B$11*'Salary Calculations'!B36 ->  | E36: ='Salary Worksheet'!$B$12*'Salary Calculations'!B36 ->  | G36: =IF(ISERROR(A36),NA(),G35*(1+'Salary Worksheet'!$B$20)) ->  | H36: =IF(ISERROR(A36),NA(),H35*(1+'Salary Worksheet'!$B$20)) ->  | J36: ='Salary Worksheet'!$B$8*'Salary Calculations'!I36 ->  | K36: ='Salary Worksheet'!$B$13*'Salary Calculations'!I36 ->  | L36: ='Salary Worksheet'!$B$14*'Salary Calculations'!I36 ->  | M36: =IF('Salary Worksheet'!$B$18="Yes",'Salary Worksheet'!$B$9*'Salary Calculations'!I36,'Salary Worksheet'!$B$9*'Salary Calculations'!G36) ->  | N36: ='Salary Worksheet'!$B$10*'Salary Calculations'!I36 ->  | P36: =IF(ISERROR(A36),NA(),P35*(1+'Salary Worksheet'!$B$20)) -> 
A37: =IF(A36<'Salary Worksheet'!$B$6,A36+1,NA()) ->  | C37: =IF(ISERROR(A37),NA(),'Salary Worksheet'!$B$15) ->  | D37: ='Salary Worksheet'!$B$11*'Salary Calculations'!B37 ->  | E37: ='Salary Worksheet'!$B$12*'Salary Calculations'!B37 ->  | G37: =IF(ISERROR(A37),NA(),G36*(1+'Salary Worksheet'!$B$20)) ->  | H37: =IF(ISERROR(A37),NA(),H36*(1+'Salary Worksheet'!$B$20)) ->  | J37: ='Salary Worksheet'!$B$8*'Salary Calculations'!I37 ->  | K37: ='Salary Worksheet'!$B$13*'Salary Calculations'!I37 ->  | L37: ='Salary Worksheet'!$B$14*'Salary Calculations'!I37 ->  | M37: =IF('Salary Worksheet'!$B$18="Yes",'Salary Worksheet'!$B$9*'Salary Calculations'!I37,'Salary Worksheet'!$B$9*'Salary Calculations'!G37) ->  | N37: ='Salary Worksheet'!$B$10*'Salary Calculations'!I37 ->  | P37: =IF(ISERROR(A37),NA(),P36*(1+'Salary Worksheet'!$B$20)) -> 
A38: =IF(A37<'Salary Worksheet'!$B$6,A37+1,NA()) ->  | C38: =IF(ISERROR(A38),NA(),'Salary Worksheet'!$B$15) ->  | D38: ='Salary Worksheet'!$B$11*'Salary Calculations'!B38 ->  | E38: ='Salary Worksheet'!$B$12*'Salary Calculations'!B38 ->  | G38: =IF(ISERROR(A38),NA(),G37*(1+'Salary Worksheet'!$B$20)) ->  | H38: =IF(ISERROR(A38),NA(),H37*(1+'Salary Worksheet'!$B$20)) ->  | J38: ='Salary Worksheet'!$B$8*'Salary Calculations'!I38 ->  | K38: ='Salary Worksheet'!$B$13*'Salary Calculations'!I38 ->  | L38: ='Salary Worksheet'!$B$14*'Salary Calculations'!I38 ->  | M38: =IF('Salary Worksheet'!$B$18="Yes",'Salary Worksheet'!$B$9*'Salary Calculations'!I38,'Salary Worksheet'!$B$9*'Salary Calculations'!G38) ->  | N38: ='Salary Worksheet'!$B$10*'Salary Calculations'!I38 ->  | P38: =IF(ISERROR(A38),NA(),P37*(1+'Salary Worksheet'!$B$20)) -> 
A39: =IF(A38<'Salary Worksheet'!$B$6,A38+1,NA()) ->  | C39: =IF(ISERROR(A39),NA(),'Salary Worksheet'!$B$15) ->  | D39: ='Salary Worksheet'!$B$11*'Salary Calculations'!B39 ->  | E39: ='Salary Worksheet'!$B$12*'Salary Calculations'!B39 ->  | G39: =IF(ISERROR(A39),NA(),G38*(1+'Salary Worksheet'!$B$20)) ->  | H39: =IF(ISERROR(A39),NA(),H38*(1+'Salary Worksheet'!$B$20)) ->  | J39: ='Salary Worksheet'!$B$8*'Salary Calculations'!I39 ->  | K39: ='Salary Worksheet'!$B$13*'Salary Calculations'!I39 ->  | L39: ='Salary Worksheet'!$B$14*'Salary Calculations'!I39 ->  | M39: =IF('Salary Worksheet'!$B$18="Yes",'Salary Worksheet'!$B$9*'Salary Calculations'!I39,'Salary Worksheet'!$B$9*'Salary Calculations'!G39) ->  | N39: ='Salary Worksheet'!$B$10*'Salary Calculations'!I39 ->  | P39: =IF(ISERROR(A39),NA(),P38*(1+'Salary Worksheet'!$B$20)) -> 
A40: =IF(A39<'Salary Worksheet'!$B$6,A39+1,NA()) ->  | C40: =IF(ISERROR(A40),NA(),'Salary Worksheet'!$B$15) ->  | D40: ='Salary Worksheet'!$B$11*'Salary Calculations'!B40 ->  | E40: ='Salary Worksheet'!$B$12*'Salary Calculations'!B40 ->  | G40: =IF(ISERROR(A40),NA(),G39*(1+'Salary Worksheet'!$B$20)) ->  | H40: =IF(ISERROR(A40),NA(),H39*(1+'Salary Worksheet'!$B$20)) ->  | J40: ='Salary Worksheet'!$B$8*'Salary Calculations'!I40 ->  | K40: ='Salary Worksheet'!$B$13*'Salary Calculations'!I40 ->  | L40: ='Salary Worksheet'!$B$14*'Salary Calculations'!I40 ->  | M40: =IF('Salary Worksheet'!$B$18="Yes",'Salary Worksheet'!$B$9*'Salary Calculations'!I40,'Salary Worksheet'!$B$9*'Salary Calculations'!G40) ->  | N40: ='Salary Worksheet'!$B$10*'Salary Calculations'!I40 ->  | P40: =IF(ISERROR(A40),NA(),P39*(1+'Salary Worksheet'!$B$20)) -> 
A41: =IF(A40<'Salary Worksheet'!$B$6,A40+1,NA()) ->  | C41: =IF(ISERROR(A41),NA(),'Salary Worksheet'!$B$15) ->  | D41: ='Salary Worksheet'!$B$11*'Salary Calculations'!B41 ->  | E41: ='Salary Worksheet'!$B$12*'Salary Calculations'!B41 ->  | G41: =IF(ISERROR(A41),NA(),G40*(1+'Salary Worksheet'!$B$20)) ->  | H41: =IF(ISERROR(A41),NA(),H40*(1+'Salary Worksheet'!$B$20)) ->  | J41: ='Salary Worksheet'!$B$8*'Salary Calculations'!I41 ->  | K41: ='Salary Worksheet'!$B$13*'Salary Calculations'!I41 ->  | L41: ='Salary Worksheet'!$B$14*'Salary Calculations'!I41 ->  | M41: =IF('Salary Worksheet'!$B$18="Yes",'Salary Worksheet'!$B$9*'Salary Calculations'!I41,'Salary Worksheet'!$B$9*'Salary Calculations'!G41) ->  | N41: ='Salary Worksheet'!$B$10*'Salary Calculations'!I41 ->  | P41: =IF(ISERROR(A41),NA(),P40*(1+'Salary Worksheet'!$B$20)) -> 
A42: =IF(A41<'Salary Worksheet'!$B$6,A41+1,NA()) ->  | C42: =IF(ISERROR(A42),NA(),'Salary Worksheet'!$B$15) ->  | D42: ='Salary Worksheet'!$B$11*'Salary Calculations'!B42 ->  | E42: ='Salary Worksheet'!$B$12*'Salary Calculations'!B42 ->  | G42: =IF(ISERROR(A42),NA(),G41*(1+'Salary Worksheet'!$B$20)) ->  | H42: =IF(ISERROR(A42),NA(),H41*(1+'Salary Worksheet'!$B$20)) ->  | J42: ='Salary Worksheet'!$B$8*'Salary Calculations'!I42 ->  | K42: ='Salary Worksheet'!$B$13*'Salary Calculations'!I42 ->  | L42: ='Salary Worksheet'!$B$14*'Salary Calculations'!I42 ->  | M42: =IF('Salary Worksheet'!$B$18="Yes",'Salary Worksheet'!$B$9*'Salary Calculations'!I42,'Salary Worksheet'!$B$9*'Salary Calculations'!G42) ->  | N42: ='Salary Worksheet'!$B$10*'Salary Calculations'!I42 ->  | P42: =IF(ISERROR(A42),NA(),P41*(1+'Salary Worksheet'!$B$20)) -> 
A43: =IF(A42<'Salary Worksheet'!$B$6,A42+1,NA()) ->  | C43: =IF(ISERROR(A43),NA(),'Salary Worksheet'!$B$15) ->  | D43: ='Salary Worksheet'!$B$11*'Salary Calculations'!B43 ->  | E43: ='Salary Worksheet'!$B$12*'Salary Calculations'!B43 ->  | G43: =IF(ISERROR(A43),NA(),G42*(1+'Salary Worksheet'!$B$20)) ->  | H43: =IF(ISERROR(A43),NA(),H42*(1+'Salary Worksheet'!$B$20)) ->  | J43: ='Salary Worksheet'!$B$8*'Salary Calculations'!I43 ->  | K43: ='Salary Worksheet'!$B$13*'Salary Calculations'!I43 ->  | L43: ='Salary Worksheet'!$B$14*'Salary Calculations'!I43 ->  | M43: =IF('Salary Worksheet'!$B$18="Yes",'Salary Worksheet'!$B$9*'Salary Calculations'!I43,'Salary Worksheet'!$B$9*'Salary Calculations'!G43) ->  | N43: ='Salary Worksheet'!$B$10*'Salary Calculations'!I43 ->  | P43: =IF(ISERROR(A43),NA(),P42*(1+'Salary Worksheet'!$B$20)) -> 
A44: =IF(A43<'Salary Worksheet'!$B$6,A43+1,NA()) ->  | C44: =IF(ISERROR(A44),NA(),'Salary Worksheet'!$B$15) ->  | D44: ='Salary Worksheet'!$B$11*'Salary Calculations'!B44 ->  | E44: ='Salary Worksheet'!$B$12*'Salary Calculations'!B44 ->  | G44: =IF(ISERROR(A44),NA(),G43*(1+'Salary Worksheet'!$B$20)) ->  | H44: =IF(ISERROR(A44),NA(),H43*(1+'Salary Worksheet'!$B$20)) ->  | J44: ='Salary Worksheet'!$B$8*'Salary Calculations'!I44 ->  | K44: ='Salary Worksheet'!$B$13*'Salary Calculations'!I44 ->  | L44: ='Salary Worksheet'!$B$14*'Salary Calculations'!I44 ->  | M44: =IF('Salary Worksheet'!$B$18="Yes",'Salary Worksheet'!$B$9*'Salary Calculations'!I44,'Salary Worksheet'!$B$9*'Salary Calculations'!G44) ->  | N44: ='Salary Worksheet'!$B$10*'Salary Calculations'!I44 ->  | P44: =IF(ISERROR(A44),NA(),P43*(1+'Salary Worksheet'!$B$20)) -> 
A45: =IF(A44<'Salary Worksheet'!$B$6,A44+1,NA()) ->  | C45: =IF(ISERROR(A45),NA(),'Salary Worksheet'!$B$15) ->  | D45: ='Salary Worksheet'!$B$11*'Salary Calculations'!B45 ->  | E45: ='Salary Worksheet'!$B$12*'Salary Calculations'!B45 ->  | G45: =IF(ISERROR(A45),NA(),G44*(1+'Salary Worksheet'!$B$20)) ->  | H45: =IF(ISERROR(A45),NA(),H44*(1+'Salary Worksheet'!$B$20)) ->  | J45: ='Salary Worksheet'!$B$8*'Salary Calculations'!I45 ->  | K45: ='Salary Worksheet'!$B$13*'Salary Calculations'!I45 ->  | L45: ='Salary Worksheet'!$B$14*'Salary Calculations'!I45 ->  | M45: =IF('Salary Worksheet'!$B$18="Yes",'Salary Worksheet'!$B$9*'Salary Calculations'!I45,'Salary Worksheet'!$B$9*'Salary Calculations'!G45) ->  | N45: ='Salary Worksheet'!$B$10*'Salary Calculations'!I45 ->  | P45: =IF(ISERROR(A45),NA(),P44*(1+'Salary Worksheet'!$B$20)) -> 
A46: =IF(A45<'Salary Worksheet'!$B$6,A45+1,NA()) ->  | C46: =IF(ISERROR(A46),NA(),'Salary Worksheet'!$B$15) ->  | D46: ='Salary Worksheet'!$B$11*'Salary Calculations'!B46 ->  | E46: ='Salary Worksheet'!$B$12*'Salary Calculations'!B46 ->  | G46: =IF(ISERROR(A46),NA(),G45*(1+'Salary Worksheet'!$B$20)) ->  | H46: =IF(ISERROR(A46),NA(),H45*(1+'Salary Worksheet'!$B$20)) ->  | J46: ='Salary Worksheet'!$B$8*'Salary Calculations'!I46 ->  | K46: ='Salary Worksheet'!$B$13*'Salary Calculations'!I46 ->  | L46: ='Salary Worksheet'!$B$14*'Salary Calculations'!I46 ->  | M46: =IF('Salary Worksheet'!$B$18="Yes",'Salary Worksheet'!$B$9*'Salary Calculations'!I46,'Salary Worksheet'!$B$9*'Salary Calculations'!G46) ->  | N46: ='Salary Worksheet'!$B$10*'Salary Calculations'!I46 ->  | P46: =IF(ISERROR(A46),NA(),P45*(1+'Salary Worksheet'!$B$20)) -> 
A47: =IF(A46<'Salary Worksheet'!$B$6,A46+1,NA()) ->  | C47: =IF(ISERROR(A47),NA(),'Salary Worksheet'!$B$15) ->  | D47: ='Salary Worksheet'!$B$11*'Salary Calculations'!B47 ->  | E47: ='Salary Worksheet'!$B$12*'Salary Calculations'!B47 ->  | G47: =IF(ISERROR(A47),NA(),G46*(1+'Salary Worksheet'!$B$20)) ->  | H47: =IF(ISERROR(A47),NA(),H46*(1+'Salary Worksheet'!$B$20)) ->  | J47: ='Salary Worksheet'!$B$8*'Salary Calculations'!I47 ->  | K47: ='Salary Worksheet'!$B$13*'Salary Calculations'!I47 ->  | L47: ='Salary Worksheet'!$B$14*'Salary Calculations'!I47 ->  | M47: =IF('Salary Worksheet'!$B$18="Yes",'Salary Worksheet'!$B$9*'Salary Calculations'!I47,'Salary Worksheet'!$B$9*'Salary Calculations'!G47) ->  | N47: ='Salary Worksheet'!$B$10*'Salary Calculations'!I47 ->  | P47: =IF(ISERROR(A47),NA(),P46*(1+'Salary Worksheet'!$B$20)) -> 
A48: =IF(A47<'Salary Worksheet'!$B$6,A47+1,NA()) ->  | C48: =IF(ISERROR(A48),NA(),'Salary Worksheet'!$B$15) ->  | D48: ='Salary Worksheet'!$B$11*'Salary Calculations'!B48 ->  | E48: ='Salary Worksheet'!$B$12*'Salary Calculations'!B48 ->  | G48: =IF(ISERROR(A48),NA(),G47*(1+'Salary Worksheet'!$B$20)) ->  | H48: =IF(ISERROR(A48),NA(),H47*(1+'Salary Worksheet'!$B$20)) ->  | J48: ='Salary Worksheet'!$B$8*'Salary Calculations'!I48 ->  | K48: ='Salary Worksheet'!$B$13*'Salary Calculations'!I48 ->  | L48: ='Salary Worksheet'!$B$14*'Salary Calculations'!I48 ->  | M48: =IF('Salary Worksheet'!$B$18="Yes",'Salary Worksheet'!$B$9*'Salary Calculations'!I48,'Salary Worksheet'!$B$9*'Salary Calculations'!G48) ->  | N48: ='Salary Worksheet'!$B$10*'Salary Calculations'!I48 ->  | P48: =IF(ISERROR(A48),NA(),P47*(1+'Salary Worksheet'!$B$20)) -> 
A49: =IF(A48<'Salary Worksheet'!$B$6,A48+1,NA()) ->  | C49: =IF(ISERROR(A49),NA(),'Salary Worksheet'!$B$15) ->  | D49: ='Salary Worksheet'!$B$11*'Salary Calculations'!B49 ->  | E49: ='Salary Worksheet'!$B$12*'Salary Calculations'!B49 ->  | G49: =IF(ISERROR(A49),NA(),G48*(1+'Salary Worksheet'!$B$20)) ->  | H49: =IF(ISERROR(A49),NA(),H48*(1+'Salary Worksheet'!$B$20)) ->  | J49: ='Salary Worksheet'!$B$8*'Salary Calculations'!I49 ->  | K49: ='Salary Worksheet'!$B$13*'Salary Calculations'!I49 ->  | L49: ='Salary Worksheet'!$B$14*'Salary Calculations'!I49 ->  | M49: =IF('Salary Worksheet'!$B$18="Yes",'Salary Worksheet'!$B$9*'Salary Calculations'!I49,'Salary Worksheet'!$B$9*'Salary Calculations'!G49) ->  | N49: ='Salary Worksheet'!$B$10*'Salary Calculations'!I49 ->  | P49: =IF(ISERROR(A49),NA(),P48*(1+'Salary Worksheet'!$B$20)) -> 
A50: =IF(A49<'Salary Worksheet'!$B$6,A49+1,NA()) ->  | C50: =IF(ISERROR(A50),NA(),'Salary Worksheet'!$B$15) ->  | D50: ='Salary Worksheet'!$B$11*'Salary Calculations'!B50 ->  | E50: ='Salary Worksheet'!$B$12*'Salary Calculations'!B50 ->  | G50: =IF(ISERROR(A50),NA(),G49*(1+'Salary Worksheet'!$B$20)) ->  | H50: =IF(ISERROR(A50),NA(),H49*(1+'Salary Worksheet'!$B$20)) ->  | J50: ='Salary Worksheet'!$B$8*'Salary Calculations'!I50 ->  | K50: ='Salary Worksheet'!$B$13*'Salary Calculations'!I50 ->  | L50: ='Salary Worksheet'!$B$14*'Salary Calculations'!I50 ->  | M50: =IF('Salary Worksheet'!$B$18="Yes",'Salary Worksheet'!$B$9*'Salary Calculations'!I50,'Salary Worksheet'!$B$9*'Salary Calculations'!G50) ->  | N50: ='Salary Worksheet'!$B$10*'Salary Calculations'!I50 ->  | P50: =IF(ISERROR(A50),NA(),P49*(1+'Salary Worksheet'!$B$20)) -> 
A51: =IF(A50<'Salary Worksheet'!$B$6,A50+1,NA()) ->  | C51: =IF(ISERROR(A51),NA(),'Salary Worksheet'!$B$15) ->  | D51: ='Salary Worksheet'!$B$11*'Salary Calculations'!B51 ->  | E51: ='Salary Worksheet'!$B$12*'Salary Calculations'!B51 ->  | G51: =IF(ISERROR(A51),NA(),G50*(1+'Salary Worksheet'!$B$20)) ->  | H51: =IF(ISERROR(A51),NA(),H50*(1+'Salary Worksheet'!$B$20)) ->  | J51: ='Salary Worksheet'!$B$8*'Salary Calculations'!I51 ->  | K51: ='Salary Worksheet'!$B$13*'Salary Calculations'!I51 ->  | L51: ='Salary Worksheet'!$B$14*'Salary Calculations'!I51 ->  | M51: =IF('Salary Worksheet'!$B$18="Yes",'Salary Worksheet'!$B$9*'Salary Calculations'!I51,'Salary Worksheet'!$B$9*'Salary Calculations'!G51) ->  | N51: ='Salary Worksheet'!$B$10*'Salary Calculations'!I51 ->  | P51: =IF(ISERROR(A51),NA(),P50*(1+'Salary Worksheet'!$B$20)) -> 
A52: =IF(A51<'Salary Worksheet'!$B$6,A51+1,NA()) ->  | C52: =IF(ISERROR(A52),NA(),'Salary Worksheet'!$B$15) ->  | D52: ='Salary Worksheet'!$B$11*'Salary Calculations'!B52 ->  | E52: ='Salary Worksheet'!$B$12*'Salary Calculations'!B52 ->  | G52: =IF(ISERROR(A52),NA(),G51*(1+'Salary Worksheet'!$B$20)) ->  | H52: =IF(ISERROR(A52),NA(),H51*(1+'Salary Worksheet'!$B$20)) ->  | J52: ='Salary Worksheet'!$B$8*'Salary Calculations'!I52 ->  | K52: ='Salary Worksheet'!$B$13*'Salary Calculations'!I52 ->  | L52: ='Salary Worksheet'!$B$14*'Salary Calculations'!I52 ->  | M52: =IF('Salary Worksheet'!$B$18="Yes",'Salary Worksheet'!$B$9*'Salary Calculations'!I52,'Salary Worksheet'!$B$9*'Salary Calculations'!G52) ->  | N52: ='Salary Worksheet'!$B$10*'Salary Calculations'!I52 ->  | P52: =IF(ISERROR(A52),NA(),P51*(1+'Salary Worksheet'!$B$20)) -> 
A53: =IF(A52<'Salary Worksheet'!$B$6,A52+1,NA()) ->  | C53: =IF(ISERROR(A53),NA(),'Salary Worksheet'!$B$15) ->  | D53: ='Salary Worksheet'!$B$11*'Salary Calculations'!B53 ->  | E53: ='Salary Worksheet'!$B$12*'Salary Calculations'!B53 ->  | G53: =IF(ISERROR(A53),NA(),G52*(1+'Salary Worksheet'!$B$20)) ->  | H53: =IF(ISERROR(A53),NA(),H52*(1+'Salary Worksheet'!$B$20)) ->  | J53: ='Salary Worksheet'!$B$8*'Salary Calculations'!I53 ->  | K53: ='Salary Worksheet'!$B$13*'Salary Calculations'!I53 ->  | L53: ='Salary Worksheet'!$B$14*'Salary Calculations'!I53 ->  | M53: =IF('Salary Worksheet'!$B$18="Yes",'Salary Worksheet'!$B$9*'Salary Calculations'!I53,'Salary Worksheet'!$B$9*'Salary Calculations'!G53) ->  | N53: ='Salary Worksheet'!$B$10*'Salary Calculations'!I53 ->  | P53: =IF(ISERROR(A53),NA(),P52*(1+'Salary Worksheet'!$B$20)) -> 
A54: =IF(A53<'Salary Worksheet'!$B$6,A53+1,NA()) ->  | C54: =IF(ISERROR(A54),NA(),'Salary Worksheet'!$B$15) ->  | D54: ='Salary Worksheet'!$B$11*'Salary Calculations'!B54 ->  | E54: ='Salary Worksheet'!$B$12*'Salary Calculations'!B54 ->  | G54: =IF(ISERROR(A54),NA(),G53*(1+'Salary Worksheet'!$B$20)) ->  | H54: =IF(ISERROR(A54),NA(),H53*(1+'Salary Worksheet'!$B$20)) ->  | J54: ='Salary Worksheet'!$B$8*'Salary Calculations'!I54 ->  | K54: ='Salary Worksheet'!$B$13*'Salary Calculations'!I54 ->  | L54: ='Salary Worksheet'!$B$14*'Salary Calculations'!I54 ->  | M54: =IF('Salary Worksheet'!$B$18="Yes",'Salary Worksheet'!$B$9*'Salary Calculations'!I54,'Salary Worksheet'!$B$9*'Salary Calculations'!G54) ->  | N54: ='Salary Worksheet'!$B$10*'Salary Calculations'!I54 ->  | P54: =IF(ISERROR(A54),NA(),P53*(1+'Salary Worksheet'!$B$20)) -> 
A55: =IF(A54<'Salary Worksheet'!$B$6,A54+1,NA()) ->  | C55: =IF(ISERROR(A55),NA(),'Salary Worksheet'!$B$15) ->  | D55: ='Salary Worksheet'!$B$11*'Salary Calculations'!B55 ->  | E55: ='Salary Worksheet'!$B$12*'Salary Calculations'!B55 ->  | G55: =IF(ISERROR(A55),NA(),G54*(1+'Salary Worksheet'!$B$20)) ->  | H55: =IF(ISERROR(A55),NA(),H54*(1+'Salary Worksheet'!$B$20)) ->  | J55: ='Salary Worksheet'!$B$8*'Salary Calculations'!I55 ->  | K55: ='Salary Worksheet'!$B$13*'Salary Calculations'!I55 ->  | L55: ='Salary Worksheet'!$B$14*'Salary Calculations'!I55 ->  | M55: =IF('Salary Worksheet'!$B$18="Yes",'Salary Worksheet'!$B$9*'Salary Calculations'!I55,'Salary Worksheet'!$B$9*'Salary Calculations'!G55) ->  | N55: ='Salary Worksheet'!$B$10*'Salary Calculations'!I55 ->  | P55: =IF(ISERROR(A55),NA(),P54*(1+'Salary Worksheet'!$B$20)) -> 
A56: =IF(A55<'Salary Worksheet'!$B$6,A55+1,NA()) ->  | C56: =IF(ISERROR(A56),NA(),'Salary Worksheet'!$B$15) ->  | D56: ='Salary Worksheet'!$B$11*'Salary Calculations'!B56 ->  | E56: ='Salary Worksheet'!$B$12*'Salary Calculations'!B56 ->  | G56: =IF(ISERROR(A56),NA(),G55*(1+'Salary Worksheet'!$B$20)) ->  | H56: =IF(ISERROR(A56),NA(),H55*(1+'Salary Worksheet'!$B$20)) ->  | J56: ='Salary Worksheet'!$B$8*'Salary Calculations'!I56 ->  | K56: ='Salary Worksheet'!$B$13*'Salary Calculations'!I56 ->  | L56: ='Salary Worksheet'!$B$14*'Salary Calculations'!I56 ->  | M56: =IF('Salary Worksheet'!$B$18="Yes",'Salary Worksheet'!$B$9*'Salary Calculations'!I56,'Salary Worksheet'!$B$9*'Salary Calculations'!G56) ->  | N56: ='Salary Worksheet'!$B$10*'Salary Calculations'!I56 ->  | P56: =IF(ISERROR(A56),NA(),P55*(1+'Salary Worksheet'!$B$20)) -> 
A57: =IF(A56<'Salary Worksheet'!$B$6,A56+1,NA()) ->  | C57: =IF(ISERROR(A57),NA(),'Salary Worksheet'!$B$15) ->  | D57: ='Salary Worksheet'!$B$11*'Salary Calculations'!B57 ->  | E57: ='Salary Worksheet'!$B$12*'Salary Calculations'!B57 ->  | G57: =IF(ISERROR(A57),NA(),G56*(1+'Salary Worksheet'!$B$20)) ->  | H57: =IF(ISERROR(A57),NA(),H56*(1+'Salary Worksheet'!$B$20)) ->  | J57: ='Salary Worksheet'!$B$8*'Salary Calculations'!I57 ->  | K57: ='Salary Worksheet'!$B$13*'Salary Calculations'!I57 ->  | L57: ='Salary Worksheet'!$B$14*'Salary Calculations'!I57 ->  | M57: =IF('Salary Worksheet'!$B$18="Yes",'Salary Worksheet'!$B$9*'Salary Calculations'!I57,'Salary Worksheet'!$B$9*'Salary Calculations'!G57) ->  | N57: ='Salary Worksheet'!$B$10*'Salary Calculations'!I57 ->  | P57: =IF(ISERROR(A57),NA(),P56*(1+'Salary Worksheet'!$B$20)) -> 
A58: =IF(A57<'Salary Worksheet'!$B$6,A57+1,NA()) ->  | C58: =IF(ISERROR(A58),NA(),'Salary Worksheet'!$B$15) ->  | D58: ='Salary Worksheet'!$B$11*'Salary Calculations'!B58 ->  | E58: ='Salary Worksheet'!$B$12*'Salary Calculations'!B58 ->  | G58: =IF(ISERROR(A58),NA(),G57*(1+'Salary Worksheet'!$B$20)) ->  | H58: =IF(ISERROR(A58),NA(),H57*(1+'Salary Worksheet'!$B$20)) ->  | J58: ='Salary Worksheet'!$B$8*'Salary Calculations'!I58 ->  | K58: ='Salary Worksheet'!$B$13*'Salary Calculations'!I58 ->  | L58: ='Salary Worksheet'!$B$14*'Salary Calculations'!I58 ->  | M58: =IF('Salary Worksheet'!$B$18="Yes",'Salary Worksheet'!$B$9*'Salary Calculations'!I58,'Salary Worksheet'!$B$9*'Salary Calculations'!G58) ->  | N58: ='Salary Worksheet'!$B$10*'Salary Calculations'!I58 ->  | P58: =IF(ISERROR(A58),NA(),P57*(1+'Salary Worksheet'!$B$20)) -> 
A59: =IF(A58<'Salary Worksheet'!$B$6,A58+1,NA()) ->  | C59: =IF(ISERROR(A59),NA(),'Salary Worksheet'!$B$15) ->  | D59: ='Salary Worksheet'!$B$11*'Salary Calculations'!B59 ->  | E59: ='Salary Worksheet'!$B$12*'Salary Calculations'!B59 ->  | G59: =IF(ISERROR(A59),NA(),G58*(1+'Salary Worksheet'!$B$20)) ->  | H59: =IF(ISERROR(A59),NA(),H58*(1+'Salary Worksheet'!$B$20)) ->  | J59: ='Salary Worksheet'!$B$8*'Salary Calculations'!I59 ->  | K59: ='Salary Worksheet'!$B$13*'Salary Calculations'!I59 ->  | L59: ='Salary Worksheet'!$B$14*'Salary Calculations'!I59 ->  | M59: =IF('Salary Worksheet'!$B$18="Yes",'Salary Worksheet'!$B$9*'Salary Calculations'!I59,'Salary Worksheet'!$B$9*'Salary Calculations'!G59) ->  | N59: ='Salary Worksheet'!$B$10*'Salary Calculations'!I59 ->  | P59: =IF(ISERROR(A59),NA(),P58*(1+'Salary Worksheet'!$B$20)) -> 
A60: =IF(A59<'Salary Worksheet'!$B$6,A59+1,NA()) ->  | C60: =IF(ISERROR(A60),NA(),'Salary Worksheet'!$B$15) ->  | D60: ='Salary Worksheet'!$B$11*'Salary Calculations'!B60 ->  | E60: ='Salary Worksheet'!$B$12*'Salary Calculations'!B60 ->  | G60: =IF(ISERROR(A60),NA(),G59*(1+'Salary Worksheet'!$B$20)) ->  | H60: =IF(ISERROR(A60),NA(),H59*(1+'Salary Worksheet'!$B$20)) ->  | J60: ='Salary Worksheet'!$B$8*'Salary Calculations'!I60 ->  | K60: ='Salary Worksheet'!$B$13*'Salary Calculations'!I60 ->  | L60: ='Salary Worksheet'!$B$14*'Salary Calculations'!I60 ->  | M60: =IF('Salary Worksheet'!$B$18="Yes",'Salary Worksheet'!$B$9*'Salary Calculations'!I60,'Salary Worksheet'!$B$9*'Salary Calculations'!G60) ->  | N60: ='Salary Worksheet'!$B$10*'Salary Calculations'!I60 ->  | P60: =IF(ISERROR(A60),NA(),P59*(1+'Salary Worksheet'!$B$20)) -> 
A61: =IF(A60<'Salary Worksheet'!$B$6,A60+1,NA()) ->  | C61: =IF(ISERROR(A61),NA(),'Salary Worksheet'!$B$15) ->  | D61: ='Salary Worksheet'!$B$11*'Salary Calculations'!B61 ->  | E61: ='Salary Worksheet'!$B$12*'Salary Calculations'!B61 ->  | G61: =IF(ISERROR(A61),NA(),G60*(1+'Salary Worksheet'!$B$20)) ->  | H61: =IF(ISERROR(A61),NA(),H60*(1+'Salary Worksheet'!$B$20)) ->  | J61: ='Salary Worksheet'!$B$8*'Salary Calculations'!I61 ->  | K61: ='Salary Worksheet'!$B$13*'Salary Calculations'!I61 ->  | L61: ='Salary Worksheet'!$B$14*'Salary Calculations'!I61 ->  | M61: =IF('Salary Worksheet'!$B$18="Yes",'Salary Worksheet'!$B$9*'Salary Calculations'!I61,'Salary Worksheet'!$B$9*'Salary Calculations'!G61) ->  | N61: ='Salary Worksheet'!$B$10*'Salary Calculations'!I61 ->  | P61: =IF(ISERROR(A61),NA(),P60*(1+'Salary Worksheet'!$B$20)) -> 
A62: =IF(A61<'Salary Worksheet'!$B$6,A61+1,NA()) ->  | C62: =IF(ISERROR(A62),NA(),'Salary Worksheet'!$B$15) ->  | D62: ='Salary Worksheet'!$B$11*'Salary Calculations'!B62 ->  | E62: ='Salary Worksheet'!$B$12*'Salary Calculations'!B62 ->  | G62: =IF(ISERROR(A62),NA(),G61*(1+'Salary Worksheet'!$B$20)) ->  | H62: =IF(ISERROR(A62),NA(),H61*(1+'Salary Worksheet'!$B$20)) ->  | J62: ='Salary Worksheet'!$B$8*'Salary Calculations'!I62 ->  | K62: ='Salary Worksheet'!$B$13*'Salary Calculations'!I62 ->  | L62: ='Salary Worksheet'!$B$14*'Salary Calculations'!I62 ->  | M62: =IF('Salary Worksheet'!$B$18="Yes",'Salary Worksheet'!$B$9*'Salary Calculations'!I62,'Salary Worksheet'!$B$9*'Salary Calculations'!G62) ->  | N62: ='Salary Worksheet'!$B$10*'Salary Calculations'!I62 ->  | P62: =IF(ISERROR(A62),NA(),P61*(1+'Salary Worksheet'!$B$20)) -> 
A63: =IF(A62<'Salary Worksheet'!$B$6,A62+1,NA()) ->  | C63: =IF(ISERROR(A63),NA(),'Salary Worksheet'!$B$15) ->  | D63: ='Salary Worksheet'!$B$11*'Salary Calculations'!B63 ->  | E63: ='Salary Worksheet'!$B$12*'Salary Calculations'!B63 ->  | G63: =IF(ISERROR(A63),NA(),G62*(1+'Salary Worksheet'!$B$20)) ->  | H63: =IF(ISERROR(A63),NA(),H62*(1+'Salary Worksheet'!$B$20)) ->  | J63: ='Salary Worksheet'!$B$8*'Salary Calculations'!I63 ->  | K63: ='Salary Worksheet'!$B$13*'Salary Calculations'!I63 ->  | L63: ='Salary Worksheet'!$B$14*'Salary Calculations'!I63 ->  | M63: =IF('Salary Worksheet'!$B$18="Yes",'Salary Worksheet'!$B$9*'Salary Calculations'!I63,'Salary Worksheet'!$B$9*'Salary Calculations'!G63) ->  | N63: ='Salary Worksheet'!$B$10*'Salary Calculations'!I63 ->  | P63: =IF(ISERROR(A63),NA(),P62*(1+'Salary Worksheet'!$B$20)) -> 
A64: =IF(A63<'Salary Worksheet'!$B$6,A63+1,NA()) ->  | C64: =IF(ISERROR(A64),NA(),'Salary Worksheet'!$B$15) ->  | D64: ='Salary Worksheet'!$B$11*'Salary Calculations'!B64 ->  | E64: ='Salary Worksheet'!$B$12*'Salary Calculations'!B64 ->  | G64: =IF(ISERROR(A64),NA(),G63*(1+'Salary Worksheet'!$B$20)) ->  | H64: =IF(ISERROR(A64),NA(),H63*(1+'Salary Worksheet'!$B$20)) ->  | J64: ='Salary Worksheet'!$B$8*'Salary Calculations'!I64 ->  | K64: ='Salary Worksheet'!$B$13*'Salary Calculations'!I64 ->  | L64: ='Salary Worksheet'!$B$14*'Salary Calculations'!I64 ->  | M64: =IF('Salary Worksheet'!$B$18="Yes",'Salary Worksheet'!$B$9*'Salary Calculations'!I64,'Salary Worksheet'!$B$9*'Salary Calculations'!G64) ->  | N64: ='Salary Worksheet'!$B$10*'Salary Calculations'!I64 ->  | P64: =IF(ISERROR(A64),NA(),P63*(1+'Salary Worksheet'!$B$20)) -> 
A65: =IF(A64<'Salary Worksheet'!$B$6,A64+1,NA()) ->  | C65: =IF(ISERROR(A65),NA(),'Salary Worksheet'!$B$15) ->  | D65: ='Salary Worksheet'!$B$11*'Salary Calculations'!B65 ->  | E65: ='Salary Worksheet'!$B$12*'Salary Calculations'!B65 ->  | G65: =IF(ISERROR(A65),NA(),G64*(1+'Salary Worksheet'!$B$20)) ->  | H65: =IF(ISERROR(A65),NA(),H64*(1+'Salary Worksheet'!$B$20)) ->  | J65: ='Salary Worksheet'!$B$8*'Salary Calculations'!I65 ->  | K65: ='Salary Worksheet'!$B$13*'Salary Calculations'!I65 ->  | L65: ='Salary Worksheet'!$B$14*'Salary Calculations'!I65 ->  | M65: =IF('Salary Worksheet'!$B$18="Yes",'Salary Worksheet'!$B$9*'Salary Calculations'!I65,'Salary Worksheet'!$B$9*'Salary Calculations'!G65) ->  | N65: ='Salary Worksheet'!$B$10*'Salary Calculations'!I65 ->  | P65: =IF(ISERROR(A65),NA(),P64*(1+'Salary Worksheet'!$B$20)) -> 
A66: =IF(A65<'Salary Worksheet'!$B$6,A65+1,NA()) ->  | C66: =IF(ISERROR(A66),NA(),'Salary Worksheet'!$B$15) ->  | D66: ='Salary Worksheet'!$B$11*'Salary Calculations'!B66 ->  | E66: ='Salary Worksheet'!$B$12*'Salary Calculations'!B66 ->  | G66: =IF(ISERROR(A66),NA(),G65*(1+'Salary Worksheet'!$B$20)) ->  | H66: =IF(ISERROR(A66),NA(),H65*(1+'Salary Worksheet'!$B$20)) ->  | J66: ='Salary Worksheet'!$B$8*'Salary Calculations'!I66 ->  | K66: ='Salary Worksheet'!$B$13*'Salary Calculations'!I66 ->  | L66: ='Salary Worksheet'!$B$14*'Salary Calculations'!I66 ->  | M66: =IF('Salary Worksheet'!$B$18="Yes",'Salary Worksheet'!$B$9*'Salary Calculations'!I66,'Salary Worksheet'!$B$9*'Salary Calculations'!G66) ->  | N66: ='Salary Worksheet'!$B$10*'Salary Calculations'!I66 ->  | P66: =IF(ISERROR(A66),NA(),P65*(1+'Salary Worksheet'!$B$20)) -> 
A67: =IF(A66<'Salary Worksheet'!$B$6,A66+1,NA()) ->  | C67: =IF(ISERROR(A67),NA(),'Salary Worksheet'!$B$15) ->  | D67: ='Salary Worksheet'!$B$11*'Salary Calculations'!B67 ->  | E67: ='Salary Worksheet'!$B$12*'Salary Calculations'!B67 ->  | G67: =IF(ISERROR(A67),NA(),G66*(1+'Salary Worksheet'!$B$20)) ->  | H67: =IF(ISERROR(A67),NA(),H66*(1+'Salary Worksheet'!$B$20)) ->  | J67: ='Salary Worksheet'!$B$8*'Salary Calculations'!I67 ->  | K67: ='Salary Worksheet'!$B$13*'Salary Calculations'!I67 ->  | L67: ='Salary Worksheet'!$B$14*'Salary Calculations'!I67 ->  | M67: =IF('Salary Worksheet'!$B$18="Yes",'Salary Worksheet'!$B$9*'Salary Calculations'!I67,'Salary Worksheet'!$B$9*'Salary Calculations'!G67) ->  | N67: ='Salary Worksheet'!$B$10*'Salary Calculations'!I67 ->  | P67: =IF(ISERROR(A67),NA(),P66*(1+'Salary Worksheet'!$B$20)) -> 
A68: =IF(A67<'Salary Worksheet'!$B$6,A67+1,NA()) ->  | C68: =IF(ISERROR(A68),NA(),'Salary Worksheet'!$B$15) ->  | D68: ='Salary Worksheet'!$B$11*'Salary Calculations'!B68 ->  | E68: ='Salary Worksheet'!$B$12*'Salary Calculations'!B68 ->  | G68: =IF(ISERROR(A68),NA(),G67*(1+'Salary Worksheet'!$B$20)) ->  | H68: =IF(ISERROR(A68),NA(),H67*(1+'Salary Worksheet'!$B$20)) ->  | J68: ='Salary Worksheet'!$B$8*'Salary Calculations'!I68 ->  | K68: ='Salary Worksheet'!$B$13*'Salary Calculations'!I68 ->  | L68: ='Salary Worksheet'!$B$14*'Salary Calculations'!I68 ->  | M68: =IF('Salary Worksheet'!$B$18="Yes",'Salary Worksheet'!$B$9*'Salary Calculations'!I68,'Salary Worksheet'!$B$9*'Salary Calculations'!G68) ->  | N68: ='Salary Worksheet'!$B$10*'Salary Calculations'!I68 ->  | O68: =SUM(J68:N68) ->  | P68: =IF(ISERROR(A68),NA(),P67*(1+'Salary Worksheet'!$B$20)) -> 
A69: =IF(A68<'Salary Worksheet'!$B$6,A68+1,NA()) ->  | B69: =IF(ISERROR(A69),NA(),F68+Q68) ->  | C69: =IF(ISERROR(A69),NA(),'Salary Worksheet'!$B$15) ->  | D69: ='Salary Worksheet'!$B$11*'Salary Calculations'!B69 ->  | E69: ='Salary Worksheet'!$B$12*'Salary Calculations'!B69 ->  | G69: =IF(ISERROR(A69),NA(),G68*(1+'Salary Worksheet'!$B$20)) ->  | H69: =IF(ISERROR(A69),NA(),H68*(1+'Salary Worksheet'!$B$20)) ->  | J69: ='Salary Worksheet'!$B$8*'Salary Calculations'!I69 ->  | K69: ='Salary Worksheet'!$B$13*'Salary Calculations'!I69 ->  | L69: ='Salary Worksheet'!$B$14*'Salary Calculations'!I69 ->  | M69: =IF('Salary Worksheet'!$B$18="Yes",'Salary Worksheet'!$B$9*'Salary Calculations'!I69,'Salary Worksheet'!$B$9*'Salary Calculations'!G69) ->  | N69: ='Salary Worksheet'!$B$10*'Salary Calculations'!I69 ->  | O69: =SUM(J69:N69) ->  | P69: =IF(ISERROR(A69),NA(),P68*(1+'Salary Worksheet'!$B$20)) -> 
A70: =IF(A69<'Salary Worksheet'!$B$6,A69+1,NA()) ->  | B70: =IF(ISERROR(A70),NA(),F69+Q69) ->  | C70: =IF(ISERROR(A70),NA(),'Salary Worksheet'!$B$15) ->  | D70: ='Salary Worksheet'!$B$11*'Salary Calculations'!B70 ->  | E70: ='Salary Worksheet'!$B$12*'Salary Calculations'!B70 ->  | G70: =IF(ISERROR(A70),NA(),G69*(1+'Salary Worksheet'!$B$20)) ->  | H70: =IF(ISERROR(A70),NA(),H69*(1+'Salary Worksheet'!$B$20)) ->  | J70: ='Salary Worksheet'!$B$8*'Salary Calculations'!I70 ->  | K70: ='Salary Worksheet'!$B$13*'Salary Calculations'!I70 ->  | L70: ='Salary Worksheet'!$B$14*'Salary Calculations'!I70 ->  | M70: =IF('Salary Worksheet'!$B$18="Yes",'Salary Worksheet'!$B$9*'Salary Calculations'!I70,'Salary Worksheet'!$B$9*'Salary Calculations'!G70) ->  | N70: ='Salary Worksheet'!$B$10*'Salary Calculations'!I70 ->  | O70: =SUM(J70:N70) ->  | P70: =IF(ISERROR(A70),NA(),P69*(1+'Salary Worksheet'!$B$20)) -> 
